Workbook

Sheet xVA Calculations
B8: Swap Details | G8: Collateral Details
B9: Maturity | C9: 7 | H9: Threshold | I9: Initial margin
B10: Interest rate | C10: 0.03 | G10: Own
B11: Swap rate | C11: 0.03 | G11: Counterparty
B12: IR volatility | C12: 0.01 | G12: MPR | H12: 10
B13: Break (years)
G14: Regulatory Capital Details
G15: Methodology | H15: SA-CCR
B16: Credit and Funding Curves | G16: PD | H16: 0.002
B17: Tenor | C17: Cntrpty | D17: Own | E17: Funding | G17: Recovery | H17: 0.4
B18: 1 | C18: 125 | D18: 75 | E18: 75 | G18: Rating | H18: A
B19: 3 | C19: 160 | D19: 75 | E19: 75 | G19: Target ROC | H19: 0.15
A20: =INT(B18*400/Maturity1) -> 57 | B20: 5 | C20: 185 | D20: 75 | E20: 75 | G20: Stress multiplier | H20: 3
A21: 171 | B21: 7 | C21: 200 | D21: 75 | E21: 75 | G21: Portfolio size | H21: 50
A22: 285 | B22: 10 | C22: 215 | D22: 75 | E22: 75
A23: 400 | B23: 15 | G23: xVA management
A24: 571 | B24: 20 | G24: Pricing metric | H24: SUM
A25: 857 | B25: 30 | G25: Hedge | H25: NONE
A26: 1142 | B26: Recovery | C26: 0.6 | D26: 0.6 | G26: Beta | H26: 1
A27: 1714
M28: Curves and Exposure | AG28: Exposure | AS28: Rates and PDs
O29: Spread | Q29: Own Spread | S29: Funding curve | U29: EE | V29: NEE | W29: EE (collateralised) | X29: NEE (collateralised) | Z29: AAA | AA29: 0.007 | AG29: Fwd | AH29: St Dev | AI29: EE(uc) | AJ29: EE (uc+t) | AK29: EE (c) | AL29: EE | AM29: EEE | AN29: NEE (uc) | AO29: NEE (uc+t) | AP29: NEE (c) | AQ29: NEE | AS29: DF | AT29: Duration | AU29: PD | AV29: PD (bump) | AW29: Own PD | AX29: PD (FVA)
M30: 0 | N30: =Maturity1/800 -> 0.00875 | O30: =CubicSpline(OFFSET($B$18,0,0,NumCurvePoints,1),OFFSET($C$18,0,0,NumCurvePoints,1),N30) -> 106.8895721 | P30: =IF(ISERROR(MATCH(M30,$A$20:$A$27,0)),-1,OFFSET($C$17,MATCH(M30,$A$20:$A$27,0),0,1,1)) -> -1 | Q30: =CubicSpline(OFFSET($B$18,0,0,NumCurvePoints2,1),OFFSET($D$18,0,0,NumCurvePoints2,1),N30) -> 75 | R30: =IF(ISERROR(MATCH(M30,$A$20:$A$27,0)),-1,OFFSET($D$17,MATCH(M30,$A$20:$A$27,0),0,1,1)) -> -1 | S30: =CubicSpline(OFFSET($B$18,0,0,NumCurvePoints3,1),OFFSET($E$18,0,0,NumCurvePoints3,1),N30) -> 75 | T30: =IF(ISERROR(MATCH(M30,$A$20:$A$27,0)),-1,OFFSET($E$17,MATCH(M30,$A$20:$A$27,0),0,1,1)) -> -1 | U30: =AI30 -> 0.002353535405 | V30: =AN30 -> -0.002353535405 | W30: =AL30 -> 0.002353535405 | X30: =AQ30 -> -0.005032070362 | Z30: AA | AA30: 0.007 | AG30: =(SwapRate1-InterestRate)*AT30 -> 0 | AH30: =MAX(0.0000000001,SQRT(N30)*AT30*IRVol) -> 0.005899438392 | AI30: =(AG30*NORMSDIST(AG30/AH30)+AH30*NORMDIST(AG30/AH30,0,1,FALSE)) -> 0.002353535405 | AJ30: =AI30-IF(ThresholdB="",0,1)*IF((ThresholdB-AG30)/AH30>6,0,(1-NORMSDIST((ThresholdB-AG30)/AH30))*(AG30+AH30*NORMDIST(((ThresholdB-AG30)/AH30),0,1,FALSE)/(1-NORMSDIST((ThresholdB-AG30)/AH30))-ThresholdB)) -> 0.002353535405 | AK30: =-InitialMargin2*NORMSDIST(-InitialMargin2/(IRVol*SQRT(MPR/250)*AT30))+(IRVol*SQRT(MPR/250)*AT30)*NORMDIST(-InitialMargin2/(IRVol*SQRT(MPR/250)*AT30),0,1,FALSE) -> 0.005032070362 | AL30: =IF(OR(BreakMat="",BreakMat=0,BreakMat>N30),IF(AND(ThresholdB="",ThresholdA=0,ThresholdA<>""),AJ30+AK30,IF(AND(ThresholdB=0,ThresholdB<>""),AK30,IF(ThresholdB>0,MAX(AJ30,AK30),AJ30)))) -> 0.002353535405 | AM30: =AL30 -> 0.002353535405 | AN30: =(AG30*NORMSDIST(-AG30/AH30)-AH30*NORMDIST(-AG30/AH30,0,1,FALSE)) -> -0.002353535405 | AO30: =AN30+IF(AND(ThresholdA<>"",(ThresholdA+AG30)/AH30<6),(1-NORMSDIST((ThresholdA+AG30)/AH30))*(-AG30+AH30*NORMDIST(((ThresholdA+AG30)/AH30),0,1,FALSE)/(1-NORMSDIST((ThresholdA+AG30)/AH30))-ThresholdA)) -> -0.002353535405 | AP30: =InitialMargin1*NORMSDIST(-InitialMargin1/(IRVol*AT30*SQRT(MPR/250)))-(IRVol*AT30*SQRT(MPR/250))*NORMDIST(-InitialMargin1/(IRVol*AT30*SQRT(MPR/250)),0,1,FALSE) -> -0.005032070362 | AQ30: =IF(OR(BreakMat="",BreakMat=0,BreakMat>N30),IF(AND(ThresholdA="",ThresholdB=0,ThresholdB<>""),AO30+AP30,IF(AND(ThresholdA=0,ThresholdA<>""),AP30,MIN(AO30,AP30)))) -> -0.005032070362 | AS30: =EXP(-InterestRate*N30) -> 0.9997375345 | AT30: =MAX((1-EXP(-(Maturity1-N30)*InterestRate))/InterestRate,0) -> 6.306764925
M31: =M30+1 -> 1 | N31: =Maturity1/400 -> 0.0175 | O31: 107.0451055 | P31: -1 | Q31: 75 | R31: -1 | S31: 75 | T31: -1 | U31: =AI31 -> 0.003324657082 | V31: =AN31 -> -0.003324657082 | W31: =AL31 -> 0.003324657082 | X31: =AQ31 -> -0.005026409047 | Z31: A | AA31: 0.008 | AG31: 0 | AH31: 0.008333679445 | AI31: =(AG31*NORMSDIST(AG31/AH31)+AH31*NORMDIST(AG31/AH31,0,1,FALSE)) -> 0.003324657082 | AJ31: 0.003324657082 | AK31: 0.005026409047 | AL31: 0.003324657082 | AM31: =MAX(AL31,AM30) -> 0.003324657082 | AN31: =(AG31*NORMSDIST(-AG31/AH31)-AH31*NORMDIST(-AG31/AH31,0,1,FALSE)) -> -0.003324657082 | AO31: -0.003324657082 | AP31: -0.005026409047 | AQ31: -0.005026409047 | AS31: 0.9994751378 | AT31: 6.299669519 | AU31: =EXP(-N30*O30/CntrptyLGD/10000)-EXP(-N31*O31/CntrptyLGD/10000) -> 0.0001562976799 | AV31: =EXP(-N30*(O30+1)/CntrptyLGD/10000)-EXP(-N31*(O31+1)/CntrptyLGD/10000) -> 0.0001577553269 | AW31: =EXP(-N30*Q30/OwnLGD/10000)-EXP(-N31*Q31/OwnLGD/10000) -> 0.0001093570572 | AX31: =EXP(-N30*S30/10000)-EXP(-N31*S31/10000) -> 6.561854037e-05
M32: =M31+1 -> 2 | N32: =N31+Maturity1/400 -> 0.035 | O32: 107.356517 | P32: -1 | Q32: 75 | R32: -1 | S32: 75 | T32: -1 | U32: 0.004691179615 | V32: -0.004691179615 | W32: 0.004691179615 | X32: -0.005015081959 | Z32: BBB | AA32: 0.01 | AG32: 0 | AH32: 0.01175904346 | AI32: 0.004691179615 | AJ32: 0.004691179615 | AK32: 0.005015081959 | AL32: 0.004691179615 | AM32: 0.004691179615 | AN32: -0.004691179615 | AO32: -0.004691179615 | AP32: -0.005015081959 | AQ32: -0.005015081959 | AS32: 0.9989505511 | AT32: 6.285473119 | AU32: =EXP(-N31*O31/CntrptyLGD/10000)-EXP(-N32*O32/CntrptyLGD/10000) -> 0.0003138841408 | AV32: 0.0003167980532 | AW32: 0.0002186782349 | AX32: 0.0001312241628
M33: 3 | N33: 0.0525 | O33: 107.6683811 | P33: -1 | Q33: 75 | R33: -1 | S33: 75 | T33: -1 | U33: 0.005732514549 | V33: -0.005732514549 | W33: 0.005732514549 | X33: -0.005732514549 | Z33: BB | AA33: 0.02 | AG33: 0 | AH33: 0.01436928305 | AI33: 0.005732514549 | AJ33: 0.005732514549 | AK33: 0.005003748923 | AL33: 0.005732514549 | AM33: 0.005732514549 | AN33: -0.005732514549 | AO33: -0.005732514549 | AP33: -0.005003748923 | AQ33: -0.005732514549 | AS33: 0.9984262397 | AT33: 6.271269265 | AU33: 0.0003156044018 | AV33: 0.0003185164597 | AW33: 0.0002186304042 | AX33: 0.0001312069408
B34: NumCurvePoints | C34: =COUNT(C18:C25) -> 5 | D34: =COUNT(D18:D25) -> 5 | E34: =COUNT(E18:E25) -> 5 | M34: 4 | N34: 0.07 | O34: 107.9806897 | P34: -1 | Q34: 75 | R34: -1 | S34: 75 | T34: -1 | U34: 0.006604337565 | V34: -0.006604337565 | W34: 0.006604337565 | X34: -0.006604337565 | Z34: B | AA34: 0.03 | AG34: 0 | AH34: 0.01655461928 | AI34: 0.006604337565 | AJ34: 0.006604337565 | AK34: 0.004992409935 | AL34: 0.006604337565 | AM34: 0.006604337565 | AN34: -0.006604337565 | AO34: -0.006604337565 | AP34: -0.004992409935 | AQ34: -0.006604337565 | AS34: 0.9979022035 | AT34: 6.257057951 | AU34: 0.0003173268308 | AV34: 0.0003202370191 | AW34: 0.0002185825841 | AX34: 0.000131189721
M35: 5 | N35: 0.0875 | O35: 108.2934346 | P35: -1 | Q35: 75 | R35: -1 | S35: 75 | T35: -1 | U35: 0.007367094475 | V35: -0.007367094475 | W35: 0.007367094475 | X35: -0.007367094475 | Z35: CCC | AA35: 0.1 | AG35: 0 | AH35: 0.01846656731 | AI35: 0.007367094475 | AJ35: 0.007367094475 | AK35: 0.004981064993 | AL35: 0.007367094475 | AM35: 0.007367094475 | AN35: -0.007367094475 | AO35: -0.007367094475 | AP35: -0.004981064993 | AQ35: -0.007367094475 | AS35: 0.9973784423 | AT35: 6.242839174 | AU35: 0.0003190513183 | AV35: 0.0003219596219 | AW35: 0.0002185347744 | AX35: 0.0001311725035
M36: =M35+1 -> 6 | N36: =N35+Maturity1/400 -> 0.105 | O36: 108.6066074 | P36: -1 | Q36: 75 | R36: -1 | S36: 75 | T36: -1 | U36: 0.008051857095 | V36: -0.008051857095 | W36: 0.008051857095 | X36: -0.008051857095 | AG36: 0 | AH36: 0.02018301266 | AI36: 0.008051857095 | AJ36: 0.008051857095 | AK36: 0.004969714093 | AL36: 0.008051857095 | AM36: 0.008051857095 | AN36: -0.008051857095 | AO36: -0.008051857095 | AP36: -0.004969714093 | AQ36: -0.008051857095 | AS36: 0.996854956 | AT36: 6.228612931 | AU36: 0.0003207777551 | AV36: 0.0003236841589 | AW36: 0.0002184869751 | AX36: 0.0001311552882
M37: 7 | N37: 0.1225 | O37: 108.9202001 | P37: -1 | Q37: 75 | R37: -1 | S37: 75 | T37: -1 | U37: 0.008677125155 | V37: -0.008677125155 | W37: 0.008677125155 | X37: -0.008677125155 | Z37: Default risk capital charge | AG37: 0 | AH37: 0.02175032726 | AI37: 0.008677125155 | AJ37: 0.008677125155 | AK37: 0.004958357232 | AL37: 0.008677125155 | AM37: 0.008677125155 | AN37: -0.008677125155 | AO37: -0.008677125155 | AP37: -0.004958357232 | AQ37: -0.008677125155 | AS37: 0.9963317445 | AT37: 6.214379216 | AU37: 0.000322506032 | AV37: 0.0003254105208 | AW37: 0.0002184391863 | AX37: 0.0001311380752
M38: 8 | N38: 0.14 | O38: 109.2342044 | P38: -1 | Q38: 74.99999237 | R38: -1 | S38: 74.99999237 | T38: -1 | U38: 0.009254979083 | V38: -0.009254979083 | W38: 0.009254979083 | X38: -0.009254979083 | Z38: Alpha | AA38: 1.4 | AG38: 0 | AH38: 0.02319879225 | AI38: 0.009254979083 | AJ38: 0.009254979083 | AK38: 0.004946994407 | AL38: 0.009254979083 | AM38: 0.009254979083 | AN38: -0.009254979083 | AO38: -0.009254979083 | AP38: -0.004946994407 | AQ38: -0.009254979083 | AS38: 0.9958088077 | AT38: 6.200138027 | AU38: 0.0003242360398 | AV38: 0.0003271385985 | AW38: 0.0002183912302 | AX38: 0.0001311207577
M39: 9 | N39: 0.1575 | O39: 109.5486122 | P39: -1 | Q39: 75 | R39: -1 | S39: 75 | T39: -1 | U39: 0.009793828457 | V39: -0.009793828457 | W39: 0.009793828457 | X39: -0.009793828457 | Z39: Rho | AA39: =0.12*(1-EXP(-50*PDef))/(1-EXP(-50))+0.24*(1-(1-EXP(-50*PDef))/(1-EXP(-50))) -> 0.2285804902 | AG39: 0 | AH39: 0.02454948733 | AI39: 0.009793828457 | AJ39: 0.009793828457 | AK39: 0.004935625615 | AL39: 0.009793828457 | AM39: 0.009793828457 | AN39: -0.009793828457 | AO39: -0.009793828457 | AP39: -0.004935625615 | AQ39: -0.009793828457 | AS39: 0.9952861453 | AT39: 6.18588936 | AU39: 0.0003259676696 | AV39: 0.000328868283 | AW39: 0.0002183438178 | AX39: 0.0001311037627
M40: 10 | N40: 0.175 | O40: 109.8634151 | P40: -1 | Q40: 75 | R40: -1 | S40: 75 | T40: -1 | U40: 0.01029980962 | V40: -0.01029980962 | W40: 0.01029980962 | X40: -0.01029980962 | Z40: PD(99.9%) | AA40: =NORMSDIST((NORMSINV(PDef)+SQRT(Rho)*NORMSINV(99.9%))/SQRT(1-Rho))-PDef -> 0.05337871744 | AG40: 0 | AH40: 0.02581779403 | AI40: 0.01029980962 | AJ40: 0.01029980962 | AK40: 0.004924250853 | AL40: 0.01029980962 | AM40: 0.01029980962 | AN40: -0.01029980962 | AO40: -0.01029980962 | AP40: -0.004924250853 | AQ40: -0.01029980962 | AS40: 0.9947637572 | AT40: 6.17163321 | AU40: 0.0003277008125 | AV40: 0.0003305994655 | AW40: 0.0002182958826 | AX40: 0.0001310864497
M41: 11 | N41: 0.1925 | O41: 110.178605 | P41: -1 | Q41: 74.99999237 | R41: -1 | S41: 74.99999237 | T41: -1 | U41: 0.01077756508 | V41: -0.01077756508 | W41: 0.01077756508 | X41: -0.01077756508 | Z41: b(PD) | AA41: =(0.11852-0.05478*LN(PDef))^2 -> 0.2106408226 | AG41: 0 | AH41: 0.02701534936 | AI41: 0.01077756508 | AJ41: 0.01077756508 | AK41: 0.004912870118 | AL41: 0.01077756508 | AM41: 0.01077756508 | AN41: -0.01077756508 | AO41: -0.01077756508 | AP41: -0.004912870118 | AQ41: -0.01077756508 | AS41: 0.9942416433 | AT41: 6.157369574 | AU41: 0.0003294353598 | AV41: 0.0003323320372 | AW41: 0.0002182478914 | AX41: 0.0001310690991
B42: xVA Calculations | M42: 12 | N42: 0.21 | O42: 110.4941737 | P42: -1 | Q42: 75 | R42: -1 | S42: 75 | T42: -1 | U42: 0.01123070936 | V42: -0.01123070936 | W42: 0.01123070936 | X42: -0.01123070936 | Z42: Risk-free Duration | AA42: =(1-EXP(-Maturity1*5%))/5% -> 5.906238206 | AG42: 0 | AH42: 0.02815121363 | AI42: 0.01123070936 | AJ42: 0.01123070936 | AK42: 0.004901483406 | AL42: 0.01123070936 | AM42: 0.01123070936 | AN42: -0.01123070936 | AO42: -0.01123070936 | AP42: -0.004901483406 | AQ42: -0.01123070936 | AS42: 0.9937198034 | AT42: 6.143098447 | AU42: 0.0003311712029 | AV42: 0.0003340658893 | AW42: 0.0002182006432 | AX42: 0.0001310521907
B43: CVA | C43: =-CntrptyLGD*SUMPRODUCT(AL31:AL430,AU31:AU430,AS31:AS430) -> -0.002101464185 | D43: =IF(ISERROR(UCVA),0,UCVA/ApproxDuration*10000) -> -3.716565403 | M43: 13 | N43: 0.2275 | O43: 110.810113 | P43: -1 | Q43: 75 | R43: -1 | S43: 75 | T43: -1 | U43: 0.01166212308 | V43: -0.01166212308 | W43: 0.01166212308 | X43: -0.01166212308 | Z43: MtM | AA43: =(SwapRate1-InterestRate)*Duration1 -> 0 | AG43: 0 | AH43: 0.02923260745 | AI43: 0.01166212308 | AJ43: 0.01166212308 | AK43: 0.004890090715 | AL43: 0.01166212308 | AM43: 0.01166212308 | AN43: -0.01166212308 | AO43: -0.01166212308 | AP43: -0.004890090715 | AQ43: -0.01166212308 | AS43: 0.9931982374 | AT43: 6.128819826 | AU43: 0.0003329082331 | AV43: 0.0003358009135 | AW43: 0.0002181526729 | AX43: 0.0001310348446
B44: DVA | C44: =IF(ISERROR(-OwnLGD*SUMPRODUCT(AQ31:AQ430,AW31:AW430,AS31:AS430)),0,-OwnLGD*SUMPRODUCT(AQ31:AQ430,AW31:AW430,AS31:AS430)) -> 0.0008589598866 | D44: =IF(ISERROR(UDVA),0,UDVA/ApproxDuration*10000) -> 1.519122058 | M44: 14 | N44: 0.245 | O44: 111.1264146 | P44: -1 | Q44: 75.00000763 | R44: -1 | S44: 75.00000763 | T44: -1 | U44: 0.01207414679 | V44: -0.01207414679 | W44: 0.01207414679 | X44: -0.01207414679 | Z44: Add-on | AA44: =IF(Maturity1<1,0,IF(Maturity1<=5,0.5%,1.5%)) -> 0.015 | AG44: 0 | AH44: 0.03026539773 | AI44: 0.01207414679 | AJ44: 0.01207414679 | AK44: 0.004878692041 | AL44: 0.01207414679 | AM44: 0.01207414679 | AN44: -0.01207414679 | AO44: -0.01207414679 | AP44: -0.004878692041 | AQ44: -0.01207414679 | AS44: 0.9926769452 | AT44: 6.114533706 | AU44: 0.0003346463423 | AV44: 0.0003375370013 | AW44: 0.0002181052678 | AX44: 0.000131017834
B45: FCA | C45: =-IF(ISERROR(SUMPRODUCT(AL31:AL430,AX31:AX430,AS31:AS430)),0,SUMPRODUCT(AL31:AL430,AX31:AX430,AS31:AS430)) -> -0.0008714589317 | D45: =IF(ISERROR(FCA),0,FCA/ApproxDuration*10000) -> -1.541227368 | M45: 15 | N45: 0.2625 | O45: 111.4430704 | P45: -1 | Q45: 75 | R45: -1 | S45: 75 | T45: -1 | U45: 0.01246871354 | V45: -0.01246871354 | W45: 0.01246871354 | X45: -0.01246871354 | Z45: Maturity | AA45: =MAX(1,MIN(5,IF(OR(BreakMat="",BreakMat=0,Maturity1),MIN(Maturity1,BreakMat)))) -> 5 | AG45: 0 | AH45: 0.0312544299 | AI45: 0.01246871354 | AJ45: 0.01246871354 | AK45: 0.004867287381 | AL45: 0.01246871354 | AM45: 0.01246871354 | AN45: -0.01246871354 | AO45: -0.01246871354 | AP45: -0.004867287381 | AQ45: -0.01246871354 | AS45: 0.9921559266 | AT45: 6.100240085 | AU45: 0.000336385422 | AV45: 0.0003392740445 | AW45: 0.0002180569414 | AX45: 0.0001310002659
B46: FBA | C46: =-IF(ISERROR(SUMPRODUCT(AQ31:AQ430,AX31:AX430,AS31:AS430)),0,SUMPRODUCT(AQ31:AQ430,AX31:AX430,AS31:AS430)) -> 0.0008716129988 | D46: =IF(ISERROR(FBA),0,FBA/ApproxDuration*10000) -> 1.541499845 | M46: 16 | N46: 0.28 | O46: 111.7600721 | P46: -1 | Q46: 75 | R46: -1 | S46: 75 | T46: -1 | U46: 0.01284744223 | V46: -0.01284744223 | W46: 0.01284744223 | X46: -0.01284744223 | Z46: MA(PD,M) | AA46: =(1+(RegMaturity-2.5)*bFac)/(1-1.5*bFac) -> 2.231747866 | AG46: 0 | AH46: 0.03220376195 | AI46: 0.01284744223 | AJ46: 0.01284744223 | AK46: 0.004855876732 | AL46: 0.01284744223 | AM46: 0.01284744223 | AN46: -0.01284744223 | AO46: -0.01284744223 | AP46: -0.004855876732 | AQ46: -0.01284744223 | AS46: 0.9916351814 | AT46: 6.085938957 | AU46: 0.0003381253642 | AV46: 0.0003410119349 | AW46: 0.0002180095572 | AX46: 0.0001309832598
B47: MVA | C47: =-IF(ISERROR(SUMPRODUCT(AX31:AX430,AS31:AS430)),0,SUMPRODUCT(AX31:AX430,AS31:AS430)*InitialMargin1/2) -> 0 | D47: =IF(ISERROR(IMVA),0,IMVA/ApproxDuration*10000) -> 0 | M47: 17 | N47: 0.2975 | O47: 112.0774116 | P47: -1 | Q47: 75.00000763 | R47: -1 | S47: 75.00000763 | T47: -1 | U47: 0.01321170512 | V47: -0.01321170512 | W47: 0.01321170512 | X47: -0.01321170512 | Z47: EAD (CEM) | AA47: =MAX((MAX(MtoM1,0)+IF(Maturity1<1,0,IF(Maturity1<=5,0.5%,1.5%))),0)-IF(ThresholdB<>"",MAX(0,(SwapRate1-InterestRate)*NormalDuration-ThresholdB),0) -> 0.015 | AB47: =MAX(0,EAD_CEM-IF(OR(HedgeType="SINGLE-NAME (DELTA)",HedgeType="SINGLE-NAME (INDEX)"),CDSHedge,0)) -> 0.015 | AG47: 0 | AH47: 0.03311683361 | AI47: 0.01321170512 | AJ47: 0.01321170512 | AK47: 0.004844460091 | AL47: 0.01321170512 | AM47: 0.01321170512 | AN47: -0.01321170512 | AO47: -0.01321170512 | AP47: -0.004844460091 | AQ47: -0.01321170512 | AS47: 0.9911147096 | AT47: 6.071630319 | AU47: 0.0003398660608 | AV47: 0.0003427505644 | AW47: 0.0002179622497 | AX47: 0.0001309662958
B48: KVA | C48: =-IF(CapitalMethodology="CEM",IF(ISERROR(CVACapitalCEMHedged+DefCapCEM),0,CVACapitalCEMHedged+DefCapCEM),IF(CapitalMethodology="SA-CCR",IF(ISERROR(DefCapSACCR+CVACapitalSACCEHedged),0,DefCapSACCR+CVACapitalSACCEHedged),IF(ISERROR(DefCapIMM+CVACapitalIMMHedged),0,DefCapIMM+CVACapitalIMMHedged)))*0.5*Maturity1*TargetROC -> -0.002839377793 | D48: =IF(ISERROR(KVA),0,KVA/ApproxDuration*10000) -> -5.02160986 | M48: 18 | N48: 0.315 | O48: 112.3950806 | P48: -1 | Q48: 75 | R48: -1 | S48: 75 | T48: -1 | U48: 0.01356267772 | V48: -0.01356267772 | W48: 0.01356267772 | X48: -0.01356267772 | Z48: SA-CCR MPR | AA48: =IF(ThresholdB<>"",1.5*SQRT(MPR/250),1) -> 1 | AG48: 0 | AH48: 0.03399659145 | AI48: 0.01356267772 | AJ48: 0.01356267772 | AK48: 0.004833037454 | AL48: 0.01356267772 | AM48: 0.01356267772 | AN48: -0.01356267772 | AO48: -0.01356267772 | AP48: -0.004833037454 | AQ48: -0.01356267772 | AS48: 0.9905945109 | AT48: 6.057314168 | AU48: 0.000341607404 | AV48: 0.0003444898253 | AW48: 0.000217913822 | AX48: 0.0001309486547
B49: Total | C49: =IF(H24="SUM",SUM(C43:C48)-FBA,MIN(UCVA+UDVA+FCA+FBA+IMVA,KVA)) -> -0.004953341024 | D49: =IF(H24="SUM",SUM(D43:D48)-D46,MIN(SUM(D43:D47)-D46,D48)) -> -8.760280574 | M49: 19 | N49: 0.3325 | O49: 112.7130709 | P49: -1 | Q49: 75 | R49: -1 | S49: 75 | T49: -1 | U49: 0.01390137638 | V49: -0.01390137638 | W49: 0.01390137638 | X49: -0.01390137638 | Z49: SA-CCR mult | AA49: =MIN(1,5%+95%*EXP((MtoM1-InitialMargin2)/(2*95%*0.5%*Duration1*MPRfac))) -> 1 | AG49: 0 | AH49: 0.03484558309 | AI49: 0.01390137638 | AJ49: 0.01390137638 | AK49: 0.004821608819 | AL49: 0.01390137638 | AM49: 0.01390137638 | AN49: -0.01390137638 | AO49: -0.01390137638 | AP49: -0.004821608819 | AQ49: -0.01390137638 | AS49: 0.9900745853 | AT49: 6.042990498 | AU49: 0.0003433492861 | AV49: 0.0003462296098 | AW49: 0.0002178665354 | AX49: 0.0001309316953
M50: 20 | N50: 0.35 | O50: 113.0313743 | P50: -1 | Q50: 75 | R50: -1 | S50: 75 | T50: -1 | U50: 0.01422868712 | V50: -0.01422868712 | W50: 0.01422868712 | X50: -0.01422868712 | Z50: EAD (SA-CCR) | AA50: =Alpha*(MAX(MtoM1,0)+0.5%*Duration1)*AA49*MPRfac -> 0.04134366744 | AB50: =MAX(0,EAD_SACCR-IF(OR(HedgeType="SINGLE-NAME (DELTA)",HedgeType="SINGLE-NAME (INDEX)"),CDSHedge,0)) -> 0.04134366744 | AG50: 0 | AH50: 0.03566602944 | AI50: 0.01422868712 | AJ50: 0.01422868712 | AK50: 0.004810174183 | AL50: 0.01422868712 | AM50: 0.01422868712 | AN50: -0.01422868712 | AO50: -0.01422868712 | AP50: -0.004810174183 | AQ50: -0.01422868712 | AS50: 0.9895549326 | AT50: 6.028659306 | AU50: 0.0003450915994 | AV50: 0.0003479698102 | AW50: 0.0002178188823 | AX50: 0.0001309145116
C51: CEM | D51: SA-CCR | E51: IMM | M51: 21 | N51: 0.3675 | O51: 113.3499827 | P51: -1 | Q51: 75 | R51: -1 | S51: 75 | T51: -1 | U51: 0.01454538804 | V51: -0.01454538804 | W51: 0.01454538804 | X51: -0.01454538804 | Z51: EAD (IMM) | AA51: =AVERAGEIF(N30:N430,"<=1",AM30:AM430)*Alpha -> 0.02158757631 | AB51: =MAX(0,EAD_IMM-IF(OR(HedgeType="SINGLE-NAME (DELTA)",HedgeType="SINGLE-NAME (INDEX)"),CDSHedge,0)) -> 0.02158757631 | AG51: 0 | AH51: 0.03645988091 | AI51: 0.01454538804 | AJ51: 0.01454538804 | AK51: 0.004798733542 | AL51: 0.01454538804 | AM51: 0.01454538804 | AN51: -0.01454538804 | AO51: -0.01454538804 | AP51: -0.004798733542 | AQ51: -0.01454538804 | AS51: 0.9890355526 | AT51: 6.014320589 | AU51: 0.0003468342365 | AV51: 0.0003497103192 | AW51: 0.0002177712396 | AX51: 0.0001308973302
B52: Def Risk Capital | C52: =IF(ISERROR(DefCapCEM),0,DefCapCEM) -> 0.001072150548 | D52: =IF(ISERROR(DefCapSACCR),0,DefCapSACCR) -> 0.002955109048 | E52: =IF(ISERROR(DefCapIMM),0,DefCapIMM) -> 0.001543008785 | M52: 22 | N52: 0.385 | O52: 113.6688877 | P52: -1 | Q52: 75 | R52: -1 | S52: 75 | T52: -1 | U52: 0.014852167 | V52: -0.014852167 | W52: 0.014852167 | X52: -0.014852167 | Z52: Def Capital (CEM) | AA52: =(1-BaselIIRec)*PD99.9*MAFac*EAD_CEM_Hedged*IF(HedgeType="SINGLE-NAME (CAPITAL)", 0, 1) -> 0.001072150548 | AG52: 0 | AH52: 0.03722886173 | AI52: 0.014852167 | AJ52: 0.014852167 | AK52: 0.004787286892 | AL52: 0.014852167 | AM52: 0.014852167 | AN52: -0.014852167 | AO52: -0.014852167 | AP52: -0.004787286892 | AQ52: -0.014852167 | AS52: 0.9885164452 | AT52: 5.999974342 | AU52: 0.0003485770901 | AV52: 0.0003514510294 | AW52: 0.0002177236074 | AX52: 0.0001308801511
B53: CVA Capital | C53: =IF(ISERROR(CVAcapitalCEM),0,CVAcapitalCEM) -> 0.0008900624055 | D53: =IF(ISERROR(CVAcapitalSACCR),0,CVAcapitalSACCR) -> 0.002453229606 | E53: =IF(ISERROR(CVACapIMM),0,CVACapIMM) -> 0.002323743663 | M53: 23 | N53: 0.4025 | O53: 113.9880812 | P53: -1 | Q53: 75 | R53: -1 | S53: 75 | T53: -1 | U53: 0.01514963574 | V53: -0.01514963574 | W53: 0.01514963574 | X53: -0.01514963574 | Z53: Def Capital (SA-CCR) | AA53: =(1-BaselIIRec)*PD99.9*MAFac*EAD_SACCR_Hedged*IF(HedgeType="SINGLE-NAME (CAPITAL)", 0, 1) -> 0.002955109048 | AG53: 0 | AH53: 0.0379745053 | AI53: 0.01514963574 | AJ53: 0.01514963574 | AK53: 0.004775834232 | AL53: 0.01514963574 | AM53: 0.01514963574 | AN53: -0.01514963574 | AO53: -0.01514963574 | AP53: -0.004775834232 | AQ53: -0.01514963574 | AS53: 0.9879976103 | AT53: 5.985620561 | AU53: 0.000350320053 | AV53: 0.0003531918337 | AW53: 0.0002176759855 | AX53: 0.0001308629742
B54: Unhedged | C54: =C53+C52 -> 0.001962212954 | D54: =D53+D52 -> 0.005408338654 | E54: =E53+E52 -> 0.003866752448 | M54: 24 | N54: 0.42 | O54: 114.307555 | P54: -1 | Q54: 75 | R54: -1 | S54: 75 | T54: -1 | U54: 0.01543834129 | V54: -0.01543834129 | W54: 0.01543834129 | X54: -0.01543834129 | Z54: Def Capital (IMM) | AA54: =(1-BaselIIRec)*PD99.9*MAFac*EAD_IMM_Hedged*IF(HedgeType="SINGLE-NAME (CAPITAL)", 0, 1) -> 0.001543008785 | AG54: 0 | AH54: 0.03869818279 | AI54: 0.01543834129 | AJ54: 0.01543834129 | AK54: 0.004764375558 | AL54: 0.01543834129 | AM54: 0.01543834129 | AN54: -0.01543834129 | AO54: -0.01543834129 | AP54: -0.004764375558 | AQ54: -0.01543834129 | AS54: 0.9874790477 | AT54: 5.971259242 | AU54: 0.0003520630182 | AV54: 0.0003549326251 | AW54: 0.0002176283741 | AX54: 0.0001308457995
B55: Hedged | C55: =IF(ISERROR(DefCapCEM+CVACapitalCEMHedged),0,DefCapCEM+CVACapitalCEMHedged) -> 0.001962212954 | D55: =IF(ISERROR(DefCapSACCR+CVACapitalSACCEHedged),0,DefCapSACCR+CVACapitalSACCEHedged) -> 0.005408338654 | E55: =IF(ISERROR(DefCapIMM+CVACapitalIMMHedged),0,DefCapIMM+CVACapitalIMMHedged) -> 0.003866752448 | M55: 25 | N55: 0.4375 | O55: 114.6273009 | P55: -1 | Q55: 75 | R55: -1 | S55: 75 | T55: -1 | U55: 0.01571877519 | V55: -0.01571877519 | W55: 0.01571877519 | X55: -0.01571877519 | Z55: CVA Capital Charge | AG55: 0 | AH55: 0.03940112634 | AI55: 0.01571877519 | AJ55: 0.01571877519 | AK55: 0.004752910866 | AL55: 0.01571877519 | AM55: 0.01571877519 | AN55: -0.01571877519 | AO55: -0.01571877519 | AP55: -0.004752910866 | AQ55: -0.01571877519 | AS55: 0.9869607572 | AT55: 5.956890381 | AU55: 0.0003538058788 | AV55: 0.0003566732966 | AW55: 0.0002175807731 | AX55: 0.0001308286272
M56: 26 | N56: 0.455 | O56: 114.9473106 | P56: -1 | Q56: 75 | R56: -1 | S56: 75 | T56: -1 | U56: 0.0159913812 | V56: -0.0159913812 | W56: 0.0159913812 | X56: -0.0159913812 | Z56: Basel III weight | AA56: =VLOOKUP(Rating,$Z$29:$AA$35,2,FALSE) -> 0.008 | AG56: 0 | AH56: 0.04008444825 | AI56: 0.0159913812 | AJ56: 0.0159913812 | AK56: 0.004741440153 | AL56: 0.0159913812 | AM56: 0.0159913812 | AN56: -0.0159913812 | AO56: -0.0159913812 | AP56: -0.004741440153 | AQ56: -0.0159913812 | AS56: 0.9864427388 | AT56: 5.942513975 | AU56: 0.0003555485282 | AV56: 0.0003584137417 | AW56: 0.0002175331825 | AX56: 0.000130811457
M57: 27 | N57: 0.4725 | O57: 115.2675759 | P57: -1 | Q57: 75 | R57: -1 | S57: 75 | T57: -1 | U57: 0.01625656155 | V57: -0.01625656155 | W57: 0.01625656155 | X57: -0.01625656155 | Z57: DF | AA57: =(1-EXP(-5%*RegMaturity))/(RegMaturity*5%) -> 0.8847968677 | AG57: 0 | AH57: 0.04074915682 | AI57: 0.01625656155 | AJ57: 0.01625656155 | AK57: 0.004729963417 | AL57: 0.01625656155 | AM57: 0.01625656155 | AN57: -0.01625656155 | AO57: -0.01625656155 | AP57: -0.004729963417 | AQ57: -0.01625656155 | AS57: 0.9859249923 | AT57: 5.92813002 | AU57: 0.0003572908597 | AV57: 0.0003601538537 | AW57: 0.0002174856023 | AX57: 0.0001307942892
M58: 28 | N58: 0.49 | O58: 115.5880887 | P58: -1 | Q58: 75 | R58: -1 | S58: 75 | T58: -1 | U58: 0.01651468229 | V58: -0.01651468229 | W58: 0.01651468229 | X58: -0.01651468229 | Z58: EAD | AA58: =EAD_CEM*DF_CEM -> 0.01327195302 | AG58: 0 | AH58: 0.04139616957 | AI58: 0.01651468229 | AJ58: 0.01651468229 | AK58: 0.004718480654 | AL58: 0.01651468229 | AM58: 0.01651468229 | AN58: -0.01651468229 | AO58: -0.01651468229 | AP58: -0.004718480654 | AQ58: -0.01651468229 | AS58: 0.9854075175 | AT58: 5.913738511 | AU58: 0.000359032767 | AV58: 0.0003618935263 | AW58: 0.0002174380326 | AX58: 0.0001307771235
M59: 29 | N59: 0.5075 | O59: 115.9088408 | P59: -1 | Q59: 75 | R59: -1 | S59: 75 | T59: -1 | U59: 0.01676607772 | V59: -0.01676607772 | W59: 0.01676607772 | X59: -0.01676607772 | Z59: CVA Capital (CEM) | AA59: =NORMSINV(99%)*WiFac*SQRT((0.5*PortfolioSize*EAD_CEM*DF_CEM*Maturity1)^2+0.75*PortfolioSize*(EAD_CEM*DF_CEM*Maturity1)^2)/PortfolioSize -> 0.0008900624055 | AB59: =NORMSINV(99%)*WiFac*SQRT((IF(OR(HedgeType="INDEX (CAPITAL)",HedgeType="SINGLE-NAME (CAPITAL)"), 0, 1)*0.5*PortfolioSize*(EAD_CEM*DF_CEM*Maturity1-CDSHedge*ApproxDuration))^2+IF(HedgeType="SINGLE-NAME (CAPITAL)", 0, 1)*0.75*PortfolioSize*(EAD_CEM*DF_CEM*Maturity1-IF(HedgeType="SINGLE-NAME (DELTA)",CDSHedge*ApproxDuration,0))^2)/PortfolioSize -> 0.0008900624055 | AG59: 0 | AH59: 0.04202632447 | AI59: 0.01676607772 | AJ59: 0.01676607772 | AK59: 0.004706991861 | AL59: 0.01676607772 | AM59: 0.01676607772 | AN59: -0.01676607772 | AO59: -0.01676607772 | AP59: -0.004706991861 | AQ59: -0.01676607772 | AS59: 0.9848903144 | AT59: 5.899339444 | AU59: 0.0003607741438 | AV59: 0.0003636326533 | AW59: 0.0002173904732 | AX59: 0.0001307599602
M60: 30 | N60: 0.525 | O60: 116.2298238 | P60: -1 | Q60: 75 | R60: -1 | S60: 75 | T60: -1 | U60: 0.01701105414 | V60: -0.01701105414 | W60: 0.01701105414 | X60: -0.01701105414 | Z60: CVA Capital (SA-CCR) | AA60: =NORMSINV(99%)*WiFac*SQRT((0.5*PortfolioSize*EAD_SACCR*DF_CEM*Maturity1)^2+0.75*PortfolioSize*(EAD_SACCR*DF_CEM*Maturity1)^2)/PortfolioSize -> 0.002453229606 | AB60: =NORMSINV(99%)*WiFac*SQRT((IF(OR(HedgeType="INDEX (CAPITAL)",HedgeType="SINGLE-NAME (CAPITAL)"), 0, 1)*0.5*PortfolioSize*(EAD_SACCR*DF_CEM*Maturity1-CDSHedge*ApproxDuration))^2+IF(HedgeType="SINGLE-NAME (CAPITAL)", 0, 1)*0.75*PortfolioSize*(EAD_SACCR*DF_CEM*Maturity1-IF(HedgeType="SINGLE-NAME (DELTA)",CDSHedge*ApproxDuration,0))^2)/PortfolioSize -> 0.002453229606 | AG60: 0 | AH60: 0.04264038928 | AI60: 0.01701105414 | AJ60: 0.01701105414 | AK60: 0.004695497035 | AL60: 0.01701105414 | AM60: 0.01701105414 | AN60: -0.01701105414 | AO60: -0.01701105414 | AP60: -0.004695497035 | AQ60: -0.01701105414 | AS60: 0.9843733826 | AT60: 5.884932816 | AU60: 0.0003625148842 | AV60: 0.0003653711285 | AW60: 0.0002173429242 | AX60: 0.000130742799
M61: 31 | N61: 0.5425 | O61: 116.5510297 | P61: -1 | Q61: 75 | R61: -1 | S61: 75 | T61: -1 | U61: 0.01724989306 | V61: -0.01724989306 | W61: 0.01724989306 | X61: -0.01724989306 | Z61: CVA Capital (IMM) | AA61: =NORMSINV(99%)*WiFac*SQRT((0.5*PortfolioSize*(EAD_IMM*Maturity1*DF_CEM))^2+0.75*PortfolioSize*(EAD_IMM*Maturity1)^2)/PortfolioSize*StressMultiplier*3*SQRT(10/250) -> 0.002323743663 | AB61: =NORMSINV(99%)*WiFac*SQRT((IF(OR(HedgeType="INDEX (CAPITAL)",HedgeType="SINGLE-NAME (CAPITAL)"), 0, 1)*0.5*PortfolioSize*(EAD_IMM*Maturity1*DF_CEM-CDSHedge*ApproxDuration))^2+IF(HedgeType="SINGLE-NAME (CAPITAL)", 0, 1)*0.75*PortfolioSize*(EAD_IMM*Maturity1-IF(HedgeType="SINGLE-NAME (DELTA)",CDSHedge*ApproxDuration,0))^2)/PortfolioSize*StressMultiplier*3*SQRT(10/250) -> 0.002323743663 | AG61: 0 | AH61: 0.04323906969 | AI61: 0.01724989306 | AJ61: 0.01724989306 | AK61: 0.004683996172 | AL61: 0.01724989306 | AM61: 0.01724989306 | AN61: -0.01724989306 | AO61: -0.01724989306 | AP61: -0.004683996172 | AQ61: -0.01724989306 | AS61: 0.9838567223 | AT61: 5.870518622 | AU61: 0.0003642548821 | AV61: 0.0003671088462 | AW61: 0.0002172953857 | AX61: 0.0001307256402
M62: 32 | N62: 0.56 | O62: 116.8724501 | P62: -1 | Q62: 75 | R62: -1 | S62: 75 | T62: -1 | U62: 0.01748285399 | V62: -0.01748285399 | W62: 0.01748285399 | X62: -0.01748285399 | AG62: 0 | AH62: 0.04382301614 | AI62: 0.01748285399 | AJ62: 0.01748285399 | AK62: 0.00467248927 | AL62: 0.01748285399 | AM62: 0.01748285399 | AN62: -0.01748285399 | AO62: -0.01748285399 | AP62: -0.00467248927 | AQ62: -0.01748285399 | AS62: 0.983340333 | AT62: 5.856096859 | AU62: 0.0003659940318 | AV62: 0.0003688457006 | AW62: 0.0002172478575 | AX62: 0.0001307084836
M63: 33 | N63: 0.5775 | O63: 117.194077 | P63: -1 | Q63: 74.99999237 | R63: -1 | S63: 74.99999237 | T63: -1 | U63: 0.01771017675 | V63: -0.01771017675 | W63: 0.01771017675 | X63: -0.01771017675 | Z63: CVA bumped | AA63: =-CntrptyLGD*SUMPRODUCT(AL31:AL430,AV31:AV430,AS31:AS430) -> -0.002111300831 | AG63: 0 | AH63: 0.0443928298 | AI63: 0.01771017675 | AJ63: 0.01771017675 | AK63: 0.004660976325 | AL63: 0.01771017675 | AM63: 0.01771017675 | AN63: -0.01771017675 | AO63: -0.01771017675 | AP63: -0.004660976325 | AQ63: -0.01771017675 | AS63: 0.9828242149 | AT63: 5.841667522 | AU63: 0.0003677322278 | AV63: 0.0003705815861 | AW63: 0.0002171996107 | AX63: 0.0001306908905
M64: 34 | N64: 0.595 | O64: 117.5159021 | P64: -1 | Q64: 75 | R64: -1 | S64: 75 | T64: -1 | U64: 0.01793208356 | V64: -0.01793208356 | W64: 0.01793208356 | X64: -0.01793208356 | Z64: Delta | AA64: =(-CVAbump+UCVA)*10000 -> 0.09836645724 | AG64: 0 | AH64: 0.04494906768 | AI64: 0.01793208356 | AJ64: 0.01793208356 | AK64: 0.004649457335 | AL64: 0.01793208356 | AM64: 0.01793208356 | AN64: -0.01793208356 | AO64: -0.01793208356 | AP64: -0.004649457335 | AQ64: -0.01793208356 | AS64: 0.9823083676 | AT64: 5.827230608 | AU64: 0.0003694693648 | AV64: 0.0003723163975 | AW64: 0.0002171535614 | AX64: 0.0001306746158
M65: 35 | N65: 0.6125 | O65: 117.8379171 | P65: -1 | Q65: 75 | R65: -1 | S65: 75 | T65: -1 | U65: 0.0181487808 | V65: -0.0181487808 | W65: 0.0181487808 | X65: -0.0181487808 | Z65: Hedge amount | AA65: =IF(HedgeType="NONE",0, CVADelta/ApproxDuration*HedgeBeta) -> 0 | AG65: 0 | AH65: 0.04549224711 | AI65: 0.0181487808 | AJ65: 0.0181487808 | AK65: 0.004637932295 | AL65: 0.0181487808 | AM65: 0.0181487808 | AN65: -0.0181487808 | AO65: -0.0181487808 | AP65: -0.004637932295 | AQ65: -0.0181487808 | AS65: 0.981792791 | AT65: 5.812786113 | AU65: 0.0003712053374 | AV65: 0.0003740500295 | AW65: 0.0002171053354 | AX65: 0.0001306570272
M66: 36 | N66: 0.63 | O66: 118.1601139 | P66: -1 | Q66: 74.99999237 | R66: -1 | S66: 74.99999237 | T66: -1 | U66: 0.01836046057 | V66: -0.01836046057 | W66: 0.01836046057 | X66: -0.01836046057 | AG66: 0 | AH66: 0.04602284961 | AI66: 0.01836046057 | AJ66: 0.01836046057 | AK66: 0.004626401203 | AL66: 0.01836046057 | AM66: 0.01836046057 | AN66: -0.01836046057 | AO66: -0.01836046057 | AP66: -0.004626401203 | AQ66: -0.01836046057 | AS66: 0.9812774851 | AT66: 5.798334033 | AU66: 0.0003729400407 | AV66: 0.0003757823771 | AW66: 0.000217057054 | AX66: 0.0001306394012
M67: 37 | N67: 0.6475 | O67: 118.4824842 | P67: -1 | Q67: 75 | R67: -1 | S67: 75 | T67: -1 | U67: 0.01856730206 | V67: -0.01856730206 | W67: 0.01856730206 | X67: -0.01856730206 | AG67: 0 | AH67: 0.04654132434 | AI67: 0.01856730206 | AJ67: 0.01856730206 | AK67: 0.004614864056 | AL67: 0.01856730206 | AM67: 0.01856730206 | AN67: -0.01856730206 | AO67: -0.01856730206 | AP67: -0.004614864056 | AQ67: -0.01856730206 | AS67: 0.9807624496 | AT67: 5.783874363 | AU67: 0.0003746733699 | AV67: 0.0003775133356 | AW67: 0.0002170111674 | AX67: 0.0001306232126
M68: 38 | N68: 0.665 | O68: 118.80502 | P68: -1 | Q68: 75 | R68: -1 | S68: 75 | T68: -1 | U68: 0.01876947275 | V68: -0.01876947275 | W68: 0.01876947275 | X68: -0.01876947275 | Z68: Duration calculation | AG68: 0 | AH68: 0.04704809109 | AI68: 0.01876947275 | AJ68: 0.01876947275 | AK68: 0.00460332085 | AL68: 0.01876947275 | AM68: 0.01876947275 | AN68: -0.01876947275 | AO68: -0.01876947275 | AP68: -0.00460332085 | AQ68: -0.01876947275 | AS68: 0.9802476845 | AT68: 5.769407099 | AU68: 0.0003764052202 | AV68: 0.0003792428002 | AW68: 0.0002169629067 | AX68: 0.0001306055912
M69: 39 | N69: 0.6825 | O69: 119.1277128 | P69: -1 | Q69: 75.00000763 | R69: -1 | S69: 75.00000763 | T69: -1 | U69: 0.01896712944 | V69: -0.01896712944 | W69: 0.01896712944 | X69: -0.01896712944 | Z69: Normal duration | AA69: =(1-EXP(-Maturity1*InterestRate))/InterestRate -> 6.313858468 | AG69: 0 | AH69: 0.04754354295 | AI69: 0.01896712944 | AJ69: 0.01896712944 | AK69: 0.004591771582 | AL69: 0.01896712944 | AM69: 0.01896712944 | AN69: -0.01896712944 | AO69: -0.01896712944 | AP69: -0.004591771582 | AQ69: -0.01896712944 | AS69: 0.9797331895 | AT69: 5.754932239 | AU69: 0.0003781354872 | AV69: 0.0003809706666 | AW69: 0.0002169163118 | AX69: 0.0001305889683
M70: 40 | N70: 0.7 | O70: 119.4505546 | P70: -1 | Q70: 75 | R70: -1 | S70: 75 | T70: -1 | U70: 0.01916041924 | V70: -0.01916041924 | W70: 0.01916041924 | X70: -0.01916041924 | Z70: Spread to maturity | AA70: =CubicSpline(OFFSET($B$18,0,0,NumCurvePoints,1),OFFSET($C$18,0,0,NumCurvePoints,1),Maturity1) -> 200 | AG70: 0 | AH70: 0.04802804863 | AI70: 0.01916041924 | AJ70: 0.01916041924 | AK70: 0.004580216249 | AL70: 0.01916041924 | AM70: 0.01916041924 | AN70: -0.01916041924 | AO70: -0.01916041924 | AP70: -0.004580216249 | AQ70: -0.01916041924 | AS70: 0.9792189646 | AT70: 5.740449777 | AU70: 0.0003798640667 | AV70: 0.0003826968304 | AW70: 0.0002168671458 | AX70: 0.0001305707936
M71: 41 | N71: 0.7175 | O71: 119.7735371 | P71: -1 | Q71: 75 | R71: -1 | S71: 75 | T71: -1 | U71: 0.01934948036 | V71: -0.01934948036 | W71: 0.01934948036 | X71: -0.01934948036 | Z71: Hazard rate | AA71: =SpreadToMaturity/CntrptyLGD/10000 -> 0.03333333333 | AG71: 0 | AH71: 0.04850195457 | AI71: 0.01934948036 | AJ71: 0.01934948036 | AK71: 0.004568654848 | AL71: 0.01934948036 | AM71: 0.01934948036 | AN71: -0.01934948036 | AO71: -0.01934948036 | AP71: -0.004568654848 | AQ71: -0.01934948036 | AS71: 0.9787050095 | AT71: 5.72595971 | AU71: 0.0003815908544 | AV71: 0.0003844211877 | AW71: 0.0002168205715 | AX71: 0.0001305541753
M72: 42 | N72: 0.735 | O72: 120.0966521 | P72: -1 | Q72: 75.00000763 | R72: -1 | S72: 75.00000763 | T72: -1 | U72: 0.01953444287 | V72: -0.01953444287 | W72: 0.01953444287 | X72: -0.01953444287 | Z72: Duration | AA72: =(1-EXP(-(InterestRate+HR)*Maturity1))/(InterestRate+HR) -> 5.654317784 | AG72: 0 | AH72: 0.04896558683 | AI72: 0.01953444287 | AJ72: 0.01953444287 | AK72: 0.004557087376 | AL72: 0.01953444287 | AM72: 0.01953444287 | AN72: -0.01953444287 | AO72: -0.01953444287 | AP72: -0.004557087376 | AQ72: -0.01953444287 | AS72: 0.9781913243 | AT72: 5.711462033 | AU72: 0.0003833157467 | AV72: 0.0003861436346 | AW72: 0.0002167740733 | AX72: 0.0001305375989
M73: 43 | N73: 0.7525 | O73: 120.4198914 | P73: -1 | Q73: 75 | R73: -1 | S73: 75 | T73: -1 | U73: 0.01971542938 | V73: -0.01971542938 | W73: 0.01971542938 | X73: -0.01971542938 | AG73: 0 | AH73: 0.04941925272 | AI73: 0.01971542938 | AJ73: 0.01971542938 | AK73: 0.004545513829 | AL73: 0.01971542938 | AM73: 0.01971542938 | AN73: -0.01971542938 | AO73: -0.01971542938 | AP73: -0.004545513829 | AQ73: -0.01971542938 | AS73: 0.9776779086 | AT73: 5.696956743 | AU73: 0.0003850386397 | AV73: 0.0003878640675 | AW73: 0.0002167248072 | AX73: 0.0001305193517
M74: 44 | N74: 0.77 | O74: 120.7432469 | P74: -1 | Q74: 75 | R74: -1 | S74: 75 | T74: -1 | U74: 0.01989255559 | V74: -0.01989255559 | W74: 0.01989255559 | X74: -0.01989255559 | AG74: 0 | AH74: 0.0498632423 | AI74: 0.01989255559 | AJ74: 0.01989255559 | AK74: 0.004533934205 | AL74: 0.01989255559 | AM74: 0.01989255559 | AN74: -0.01989255559 | AO74: -0.01989255559 | AP74: -0.004533934205 | AQ74: -0.01989255559 | AS74: 0.9771647624 | AT74: 5.682443836 | AU74: 0.00038675943 | AV74: 0.0003895823828 | AW74: 0.0002166783297 | AX74: 0.0001305027797
M75: 45 | N75: 0.7875 | O75: 121.0667102 | P75: -1 | Q75: 75 | R75: -1 | S75: 75 | T75: -1 | U75: 0.0200659309 | V75: -0.0200659309 | W75: 0.0200659309 | X75: -0.0200659309 | AG75: 0 | AH75: 0.05029782974 | AI75: 0.0200659309 | AJ75: 0.0200659309 | AK75: 0.004522348499 | AL75: 0.0200659309 | AM75: 0.0200659309 | AN75: -0.0200659309 | AO75: -0.0200659309 | AP75: -0.004522348499 | AQ75: -0.0200659309 | AS75: 0.9766518856 | AT75: 5.667923308 | AU75: 0.0003884780143 | AV75: 0.0003912984774 | AW75: 0.0002166309365 | AX75: 0.0001304856524
M76: 46 | N76: 0.805 | O76: 121.3902732 | P76: -1 | Q76: 75 | R76: -1 | S76: 75 | T76: -1 | U76: 0.02023565882 | V76: -0.02023565882 | W76: 0.02023565882 | X76: -0.02023565882 | AG76: 0 | AH76: 0.05072327454 | AI76: 0.02023565882 | AJ76: 0.02023565882 | AK76: 0.00451075671 | AL76: 0.02023565882 | AM76: 0.02023565882 | AN76: -0.02023565882 | AO76: -0.02023565882 | AP76: -0.00451075671 | AQ76: -0.02023565882 | AS76: 0.9761392779 | AT76: 5.653395155 | AU76: 0.0003901942895 | AV76: 0.0003930122481 | AW76: 0.0002165835537 | AX76: 0.0001304685273
M77: 47 | N77: 0.8225 | O77: 121.7139276 | P77: -1 | Q77: 75 | R77: -1 | S77: 75 | T77: -1 | U77: 0.02040183744 | V77: -0.02040183744 | W77: 0.02040183744 | X77: -0.02040183744 | AG77: 0 | AH77: 0.05113982259 | AI77: 0.02040183744 | AJ77: 0.02040183744 | AK77: 0.004499158833 | AL77: 0.02040183744 | AM77: 0.02040183744 | AN77: -0.02040183744 | AO77: -0.02040183744 | AP77: -0.004499158833 | AQ77: -0.02040183744 | AS77: 0.9756269393 | AT77: 5.638859372 | AU77: 0.0003919081528 | AV77: 0.0003947235922 | AW77: 0.0002165361812 | AX77: 0.0001304514044
M78: 48 | N78: 0.84 | O78: 122.0376654 | P78: -1 | Q78: 75 | R78: -1 | S78: 75 | T78: -1 | U78: 0.02056455986 | V78: -0.02056455986 | W78: 0.02056455986 | X78: -0.02056455986 | AG78: 0 | AH78: 0.0515477072 | AI78: 0.02056455986 | AJ78: 0.02056455986 | AK78: 0.004487554866 | AL78: 0.02056455986 | AM78: 0.02056455986 | AN78: -0.02056455986 | AO78: -0.02056455986 | AP78: -0.004487554866 | AQ78: -0.02056455986 | AS78: 0.9751148696 | AT78: 5.624315956 | AU78: 0.0003936195014 | AV78: 0.0003964324071 | AW78: 0.0002164888191 | AX78: 0.0001304342838
M79: 49 | N79: 0.8575 | O79: 122.3614781 | P79: -1 | Q79: 75 | R79: -1 | S79: 75 | T79: -1 | U79: 0.02072391446 | V79: -0.02072391446 | W79: 0.02072391446 | X79: -0.02072391446 | AG79: 0 | AH79: 0.05194714996 | AI79: 0.02072391446 | AJ79: 0.02072391446 | AK79: 0.004475944805 | AL79: 0.02072391446 | AM79: 0.02072391446 | AN79: -0.02072391446 | AO79: -0.02072391446 | AP79: -0.004475944805 | AQ79: -0.02072391446 | AS79: 0.9746030686 | AT79: 5.609764902 | AU79: 0.0003953282329 | AV79: 0.0003981385903 | AW79: 0.0002164414674 | AX79: 0.0001304171654
M80: 50 | N80: 0.875 | O80: 122.6853578 | P80: -1 | Q80: 75 | R80: -1 | S80: 75 | T80: -1 | U80: 0.02087998533 | V80: -0.02087998533 | W80: 0.02087998533 | X80: -0.02087998533 | AG80: 0 | AH80: 0.05233836159 | AI80: 0.02087998533 | AJ80: 0.02087998533 | AK80: 0.004464328647 | AL80: 0.02087998533 | AM80: 0.02087998533 | AN80: -0.02087998533 | AO80: -0.02087998533 | AP80: -0.004464328647 | AQ80: -0.02087998533 | AS80: 0.9740915363 | AT80: 5.595206207 | AU80: 0.0003970342452 | AV80: 0.0003998420397 | AW80: 0.000216394126 | AX80: 0.0001304000493
M81: 51 | N81: 0.8925 | O81: 123.009296 | P81: -1 | Q81: 75 | R81: -1 | S81: 75 | T81: -1 | U81: 0.02103285247 | V81: -0.02103285247 | W81: 0.02103285247 | X81: -0.02103285247 | AG81: 0 | AH81: 0.05272154269 | AI81: 0.02103285247 | AJ81: 0.02103285247 | AK81: 0.00445270639 | AL81: 0.02103285247 | AM81: 0.02103285247 | AN81: -0.02103285247 | AO81: -0.02103285247 | AP81: -0.00445270639 | AQ81: -0.02103285247 | AS81: 0.9735802724 | AT81: 5.580639867 | AU81: 0.0003987374361 | AV81: 0.0004015426533 | AW81: 0.0002163467949 | AX81: 0.0001303829354
M82: 52 | N82: 0.91 | O82: 123.3332847 | P82: -1 | Q82: 75 | R82: -1 | S82: 75 | T82: -1 | U82: 0.02118259214 | V82: -0.02118259214 | W82: 0.02118259214 | X82: -0.02118259214 | AG82: 0 | AH82: 0.05309688439 | AI82: 0.02118259214 | AJ82: 0.02118259214 | AK82: 0.004441078028 | AL82: 0.02118259214 | AM82: 0.02118259214 | AN82: -0.02118259214 | AO82: -0.02118259214 | AP82: -0.004441078028 | AQ82: -0.02118259214 | AS82: 0.9730692769 | AT82: 5.566065878 | AU82: 0.000400437704 | AV82: 0.0004032403293 | AW82: 0.0002162994742 | AX82: 0.0001303658237
M83: 53 | N83: 0.9275 | O83: 123.6573156 | P83: -1 | Q83: 75 | R83: -1 | S83: 75 | T83: -1 | U83: 0.02132927707 | V83: -0.02132927707 | W83: 0.02132927707 | X83: -0.02132927707 | AG83: 0 | AH83: 0.05346456898 | AI83: 0.02132927707 | AJ83: 0.02132927707 | AK83: 0.004429443561 | AL83: 0.02132927707 | AM83: 0.02132927707 | AN83: -0.02132927707 | AO83: -0.02132927707 | AP83: -0.004429443561 | AQ83: -0.02132927707 | AS83: 0.9725585497 | AT83: 5.551484235 | AU83: 0.0004021349472 | AV83: 0.0004049349663 | AW83: 0.0002162521639 | AX83: 0.0001303487143
M84: 54 | N84: 0.945 | O84: 123.9813805 | P84: -1 | Q84: 75 | R84: -1 | S84: 75 | T84: -1 | U84: 0.02147297669 | V84: -0.02147297669 | W84: 0.02147297669 | X84: -0.02147297669 | AG84: 0 | AH84: 0.05382477052 | AI84: 0.02147297669 | AJ84: 0.02147297669 | AK84: 0.004417802983 | AL84: 0.02147297669 | AM84: 0.02147297669 | AN84: -0.02147297669 | AO84: -0.02147297669 | AP84: -0.004417802983 | AQ84: -0.02147297669 | AS84: 0.9720480904 | AT84: 5.536894935 | AU84: 0.0004038290644 | AV84: 0.0004066264629 | AW84: 0.0002162048639 | AX84: 0.0001303316072
M85: 55 | N85: 0.9625 | O85: 124.3054636 | P85: -1 | Q85: 75 | R85: -1 | S85: 75 | T85: -1 | U85: 0.02161375736 | V85: -0.02161375736 | W85: 0.02161375736 | X85: -0.02161375736 | AG85: 0 | AH85: 0.05417765531 | AI85: 0.02161375736 | AJ85: 0.02161375736 | AK85: 0.004406156293 | AL85: 0.02161375736 | AM85: 0.02161375736 | AN85: -0.02161375736 | AO85: -0.02161375736 | AP85: -0.004406156293 | AQ85: -0.02161375736 | AS85: 0.9715378991 | AT85: 5.522297974 | AU85: 0.0004055187548 | AV85: 0.0004083135186 | AW85: 0.0002161575743 | AX85: 0.0001303145023
M86: 56 | N86: 0.98 | O86: 124.6295795 | P86: -1 | Q86: 75 | R86: -1 | S86: 75 | T86: -1 | U86: 0.02175168251 | V86: -0.02175168251 | W86: 0.02175168251 | X86: -0.02175168251 | AG86: 0 | AH86: 0.0545233824 | AI86: 0.02175168251 | AJ86: 0.02175168251 | AK86: 0.004394503487 | AL86: 0.02175168251 | AM86: 0.02175168251 | AN86: -0.02175168251 | AO86: -0.02175168251 | AP86: -0.004394503487 | AQ86: -0.02175168251 | AS86: 0.9710279756 | AT86: 5.507693347 | AU86: 0.0004072087163 | AV86: 0.0004100008306 | AW86: 0.000216110295 | AX86: 0.0001302973996
M87: 57 | N87: 0.9975 | O87: 124.9536972 | P87: 125 | Q87: 75 | R87: 75 | S87: 75 | T87: 75 | U87: 0.02188681289 | V87: -0.02188681289 | W87: 0.02188681289 | X87: -0.02188681289 | AG87: 0 | AH87: 0.05486210402 | AI87: 0.02188681289 | AJ87: 0.02188681289 | AK87: 0.004382844561 | AL87: 0.02188681289 | AM87: 0.02188681289 | AN87: -0.02188681289 | AO87: -0.02188681289 | AP87: -0.004382844561 | AQ87: -0.02188681289 | AS87: 0.9705183197 | AT87: 5.49308105 | AU87: 0.00040889165 | AV87: 0.0004116811012 | AW87: 0.000216063026 | AX87: 0.0001302802992
M88: 58 | N88: 1.015 | O88: 125.277816 | P88: -1 | Q88: 75 | R88: -1 | S88: 75 | T88: -1 | U88: 0.02201920667 | V88: -0.02201920667 | W88: 0.02201920667 | X88: -0.02201920667 | AG88: 0 | AH88: 0.05519396602 | AI88: 0.02201920667 | AJ88: 0.02201920667 | AK88: 0.004371179513 | AL88: 0.02201920667 | AM88: 0.02201920667 | AN88: -0.02201920667 | AO88: -0.02201920667 | AP88: -0.004371179513 | AQ88: -0.02201920667 | AS88: 0.9700089313 | AT88: 5.47846108 | AU88: 0.0004105722544 | AV88: 0.0004133590282 | AW88: 0.0002160157674 | AX88: 0.0001302632011
M89: 59 | N89: 1.0325 | O89: 125.6019279 | P89: -1 | Q89: 75 | R89: -1 | S89: 75 | T89: -1 | U89: 0.02214891963 | V89: -0.02214891963 | W89: 0.02214891963 | X89: -0.02214891963 | AG89: 0 | AH89: 0.05551910819 | AI89: 0.02214891963 | AJ89: 0.02214891963 | AK89: 0.004359508339 | AL89: 0.02214891963 | AM89: 0.02214891963 | AN89: -0.02214891963 | AO89: -0.02214891963 | AP89: -0.004359508339 | AQ89: -0.02214891963 | AS89: 0.9694998103 | AT89: 5.463833433 | AU89: 0.0004122492296 | AV89: 0.0004150333119 | AW89: 0.0002159685191 | AX89: 0.0001302461051
M90: 60 | N90: 1.05 | O90: 125.9260244 | P90: -1 | Q90: 75 | R90: -1 | S90: 75 | T90: -1 | U90: 0.02227600528 | V90: -0.02227600528 | W90: 0.02227600528 | X90: -0.02227600528 | AG90: 0 | AH90: 0.05583766469 | AI90: 0.02227600528 | AJ90: 0.02227600528 | AK90: 0.004347831036 | AL90: 0.02227600528 | AM90: 0.02227600528 | AN90: -0.02227600528 | AO90: -0.02227600528 | AP90: -0.004347831036 | AQ90: -0.02227600528 | AS90: 0.9689909565 | AT90: 5.449198104 | AU90: 0.0004139224756 | AV90: 0.0004167038524 | AW90: 0.0002159212812 | AX90: 0.0001302290115
M91: 61 | N91: 1.0675 | O91: 126.2500975 | P91: -1 | Q91: 75 | R91: -1 | S91: 75 | T91: -1 | U91: 0.022400515 | V91: -0.022400515 | W91: 0.022400515 | X91: -0.022400515 | AG91: 0 | AH91: 0.05614976427 | AI91: 0.022400515 | AJ91: 0.022400515 | AK91: 0.004336147601 | AL91: 0.022400515 | AM91: 0.022400515 | AN91: -0.022400515 | AO91: -0.022400515 | AP91: -0.004336147601 | AQ91: -0.022400515 | AS91: 0.9684823697 | AT91: 5.43455509 | AU91: 0.0004155918927 | AV91: 0.0004183705501 | AW91: 0.0002158740536 | AX91: 0.00013021192
M92: 62 | N92: 1.085 | O92: 126.574139 | P92: -1 | Q92: 75 | R92: -1 | S92: 75 | T92: -1 | U92: 0.02252249815 | V92: -0.02252249815 | W92: 0.02252249815 | X92: -0.02252249815 | AG92: 0 | AH92: 0.05645553069 | AI92: 0.02252249815 | AJ92: 0.02252249815 | AK92: 0.00432445803 | AL92: 0.02252249815 | AM92: 0.02252249815 | AN92: -0.02252249815 | AO92: -0.02252249815 | AP92: -0.00432445803 | AQ92: -0.02252249815 | AS92: 0.9679740499 | AT92: 5.419904386 | AU92: 0.0004172573816 | AV92: 0.0004200333057 | AW92: 0.0002158268363 | AX92: 0.0001301948308
M93: 63 | N93: 1.1025 | O93: 126.8981406 | P93: -1 | Q93: 75 | R93: -1 | S93: 75 | T93: -1 | U93: 0.02264200219 | V93: -0.02264200219 | W93: 0.02264200219 | X93: -0.02264200219 | AG93: 0 | AH93: 0.05675508287 | AI93: 0.02264200219 | AJ93: 0.02264200219 | AK93: 0.004312762321 | AL93: 0.02264200219 | AM93: 0.02264200219 | AN93: -0.02264200219 | AO93: -0.02264200219 | AP93: -0.004312762321 | AQ93: -0.02264200219 | AS93: 0.9674659969 | AT93: 5.405245988 | AU93: 0.000418918843 | AV93: 0.0004216920199 | AW93: 0.0002157796293 | AX93: 0.0001301777439
M94: 64 | N94: 1.12 | O94: =CubicSpline(OFFSET($B$18,0,0,NumCurvePoints,1),OFFSET($C$18,0,0,NumCurvePoints,1),N94) -> 127.2220941 | P94: =IF(ISERROR(MATCH(M94,$A$20:$A$27,0)),-1,OFFSET($C$17,MATCH(M94,$A$20:$A$27,0),0,1,1)) -> -1 | Q94: =CubicSpline(OFFSET($B$18,0,0,NumCurvePoints2,1),OFFSET($D$18,0,0,NumCurvePoints2,1),N94) -> 75 | R94: =IF(ISERROR(MATCH(M94,$A$20:$A$27,0)),-1,OFFSET($D$17,MATCH(M94,$A$20:$A$27,0),0,1,1)) -> -1 | S94: =CubicSpline(OFFSET($B$18,0,0,NumCurvePoints3,1),OFFSET($E$18,0,0,NumCurvePoints3,1),N94) -> 75 | T94: =IF(ISERROR(MATCH(M94,$A$20:$A$27,0)),-1,OFFSET($E$17,MATCH(M94,$A$20:$A$27,0),0,1,1)) -> -1 | U94: 0.02275907276 | V94: -0.02275907276 | W94: 0.02275907276 | X94: -0.02275907276 | AG94: =(SwapRate1-InterestRate)*AT94 -> 0 | AH94: =MAX(0.0000000001,SQRT(N94)*AT94*IRVol) -> 0.05704853527 | AI94: 0.02275907276 | AJ94: =AI94-IF(ThresholdB="",0,1)*IF((ThresholdB-AG94)/AH94>6,0,(1-NORMSDIST((ThresholdB-AG94)/AH94))*(AG94+AH94*NORMDIST(((ThresholdB-AG94)/AH94),0,1,FALSE)/(1-NORMSDIST((ThresholdB-AG94)/AH94))-ThresholdB)) -> 0.02275907276 | AK94: =-InitialMargin2*NORMSDIST(-InitialMargin2/(IRVol*SQRT(MPR/250)*AT94))+(IRVol*SQRT(MPR/250)*AT94)*NORMDIST(-InitialMargin2/(IRVol*SQRT(MPR/250)*AT94),0,1,FALSE) -> 0.00430106047 | AL94: =IF(OR(BreakMat="",BreakMat=0,BreakMat>N94),IF(AND(ThresholdB="",ThresholdA=0,ThresholdA<>""),AJ94+AK94,IF(AND(ThresholdB=0,ThresholdB<>""),AK94,IF(ThresholdB>0,MAX(AJ94,AK94),AJ94)))) -> 0.02275907276 | AM94: 0.02275907276 | AN94: -0.02275907276 | AO94: =AN94+IF(AND(ThresholdA<>"",(ThresholdA+AG94)/AH94<6),(1-NORMSDIST((ThresholdA+AG94)/AH94))*(-AG94+AH94*NORMDIST(((ThresholdA+AG94)/AH94),0,1,FALSE)/(1-NORMSDIST((ThresholdA+AG94)/AH94))-ThresholdA)) -> -0.02275907276 | AP94: =InitialMargin1*NORMSDIST(-InitialMargin1/(IRVol*AT94*SQRT(MPR/250)))-(IRVol*AT94*SQRT(MPR/250))*NORMDIST(-InitialMargin1/(IRVol*AT94*SQRT(MPR/250)),0,1,FALSE) -> -0.00430106047 | AQ94: =IF(OR(BreakMat="",BreakMat=0,BreakMat>N94),IF(AND(ThresholdA="",ThresholdB=0,ThresholdB<>""),AO94+AP94,IF(AND(ThresholdA=0,ThresholdA<>""),AP94,MIN(AO94,AP94)))) -> -0.02275907276 | AS94: =EXP(-InterestRate*N94) -> 0.9669582106 | AT94: =MAX((1-EXP(-(Maturity1-N94)*InterestRate))/InterestRate,0) -> 5.390579893 | AU94: 0.000420576178 | AV94: 0.000423346594 | AW94: 0.0002157324327 | AX94: 0.0001301606592
M95: 65 | N95: 1.1375 | O95: 127.5459913 | P95: -1 | Q95: 75 | R95: -1 | S95: 75 | T95: -1 | U95: =AI95 -> 0.02287375381 | V95: =AN95 -> -0.02287375381 | W95: =AL95 -> 0.02287375381 | X95: =AQ95 -> -0.02287375381 | AG95: 0 | AH95: 0.05733599805 | AI95: =(AG95*NORMSDIST(AG95/AH95)+AH95*NORMDIST(AG95/AH95,0,1,FALSE)) -> 0.02287375381 | AJ95: 0.02287375381 | AK95: 0.004289352474 | AL95: 0.02287375381 | AM95: =MAX(AL95,AM94) -> 0.02287375381 | AN95: =(AG95*NORMSDIST(-AG95/AH95)-AH95*NORMDIST(-AG95/AH95,0,1,FALSE)) -> -0.02287375381 | AO95: -0.02287375381 | AP95: -0.004289352474 | AQ95: -0.02287375381 | AS95: 0.9664506908 | AT95: 5.375906095 | AU95: =EXP(-N94*O94/CntrptyLGD/10000)-EXP(-N95*O95/CntrptyLGD/10000) -> 0.0004222292878 | AV95: =EXP(-N94*(O94+1)/CntrptyLGD/10000)-EXP(-N95*(O95+1)/CntrptyLGD/10000) -> 0.0004249969293 | AW95: =EXP(-N94*Q94/OwnLGD/10000)-EXP(-N95*Q95/OwnLGD/10000) -> 0.0002156852464 | AX95: =EXP(-N94*S94/10000)-EXP(-N95*S95/10000) -> 0.0001301435767
M96: =M95+1 -> 66 | N96: =N95+Maturity1/400 -> 1.155 | O96: 127.869824 | P96: -1 | Q96: 75 | R96: -1 | S96: 75 | T96: -1 | U96: 0.02298608768 | V96: -0.02298608768 | W96: 0.02298608768 | X96: -0.02298608768 | AG96: 0 | AH96: 0.05761757731 | AI96: 0.02298608768 | AJ96: 0.02298608768 | AK96: 0.004277638329 | AL96: 0.02298608768 | AM96: 0.02298608768 | AN96: -0.02298608768 | AO96: -0.02298608768 | AP96: -0.004277638329 | AQ96: -0.02298608768 | AS96: 0.9659434373 | AT96: 5.361224593 | AU96: 0.0004238780741 | AV96: 0.0004266429274 | AW96: 0.0002156380704 | AX96: 0.0001301264965
M97: 67 | N97: 1.1725 | O97: 128.193584 | P97: -1 | Q97: 75 | R97: -1 | S97: 75 | T97: -1 | U97: 0.02309611517 | V97: -0.02309611517 | W97: 0.02309611517 | X97: -0.02309611517 | AG97: 0 | AH97: 0.05789337533 | AI97: 0.02309611517 | AJ97: 0.02309611517 | AK97: 0.004265918033 | AL97: 0.02309611517 | AM97: 0.02309611517 | AN97: -0.02309611517 | AO97: -0.02309611517 | AP97: -0.004265918033 | AQ97: -0.02309611517 | AS97: 0.9654364501 | AT97: 5.34653538 | AU97: 0.0004255224386 | AV97: 0.0004282844902 | AW97: 0.0002155909047 | AX97: 0.0001301094185
M98: 68 | N98: 1.19 | O98: 128.5172631 | P98: -1 | Q98: 75 | R98: -1 | S98: 75 | T98: -1 | U98: 0.02320387563 | V98: -0.02320387563 | W98: 0.02320387563 | X98: -0.02320387563 | AG98: 0 | AH98: 0.05816349073 | AI98: 0.02320387563 | AJ98: 0.02320387563 | AK98: 0.004254191583 | AL98: 0.02320387563 | AM98: 0.02320387563 | AN98: -0.02320387563 | AO98: -0.02320387563 | AP98: -0.004254191583 | AQ98: -0.02320387563 | AS98: 0.964929729 | AT98: 5.331838453 | AU98: 0.0004271622835 | AV98: 0.0004299215198 | AW98: 0.0002155437494 | AX98: 0.0001300923428
M99: 69 | N99: 1.2075 | O99: 128.8408531 | P99: -1 | Q99: 75 | R99: -1 | S99: 75 | T99: -1 | U99: 0.02330940701 | V99: -0.02330940701 | W99: 0.02330940701 | X99: -0.02330940701 | AG99: 0 | AH99: 0.05842801868 | AI99: 0.02330940701 | AJ99: 0.02330940701 | AK99: 0.004242458974 | AL99: 0.02330940701 | AM99: 0.02330940701 | AN99: -0.02330940701 | AO99: -0.02330940701 | AP99: -0.004242458974 | AQ99: -0.02330940701 | AS99: 0.9644232738 | AT99: 5.317133809 | AU99: 0.0004287975111 | AV99: 0.0004315539188 | AW99: 0.0002154966043 | AX99: 0.0001300752693
M100: 70 | N100: 1.225 | O100: 129.1643457 | P100: -1 | Q100: 75 | R100: -1 | S100: 75 | T100: -1 | U100: 0.02341274598 | V100: -0.02341274598 | W100: 0.02341274598 | X100: -0.02341274598 | AG100: 0 | AH100: 0.05868705105 | AI100: 0.02341274598 | AJ100: 0.02341274598 | AK100: 0.004230720204 | AL100: 0.02341274598 | AM100: 0.02341274598 | AN100: -0.02341274598 | AO100: -0.02341274598 | AP100: -0.004230720204 | AQ100: -0.02341274598 | AS100: 0.9639170845 | AT100: 5.302421443 | AU100: 0.000430428024 | AV100: 0.0004331815897 | AW100: 0.0002154494696 | AX100: 0.000130058198
M101: 71 | N101: 1.2425 | O101: 129.4877328 | P101: -1 | Q101: 75 | R101: -1 | S101: 75 | T101: -1 | U101: 0.02351392793 | V101: -0.02351392793 | W101: 0.02351392793 | X101: -0.02351392793 | AG101: 0 | AH101: 0.05894067659 | AI101: 0.02351392793 | AJ101: 0.02351392793 | AK101: 0.004218975269 | AL101: 0.02351392793 | AM101: 0.02351392793 | AN101: -0.02351392793 | AO101: -0.02351392793 | AP101: -0.004218975269 | AQ101: -0.02351392793 | AS101: 0.9634111608 | AT101: 5.28770135 | AU101: 0.000432053725 | AV101: 0.0004348044355 | AW101: 0.0002154023452 | AX101: 0.000130041129
M102: 72 | N102: 1.26 | O102: 129.8110061 | P102: -1 | Q102: 75 | R102: -1 | S102: 75 | T102: -1 | U102: 0.02361298707 | V102: -0.02361298707 | W102: 0.02361298707 | X102: -0.02361298707 | AG102: 0 | AH102: 0.05918898105 | AI102: 0.02361298707 | AJ102: 0.02361298707 | AK102: 0.004207224167 | AL102: 0.02361298707 | AM102: 0.02361298707 | AN102: -0.02361298707 | AO102: -0.02361298707 | AP102: -0.004207224167 | AQ102: -0.02361298707 | AS102: 0.9629055027 | AT102: 5.272973528 | AU102: 0.0004336745173 | AV102: 0.0004364223594 | AW102: 0.0002153552311 | AX102: 0.0001300240622
M103: 73 | N103: 1.2775 | O103: 130.1341575 | P103: -1 | Q103: 75 | R103: -1 | S103: 75 | T103: -1 | U103: 0.0237099565 | V103: -0.0237099565 | W103: 0.0237099565 | X103: -0.0237099565 | AG103: 0 | AH103: 0.05943204736 | AI103: 0.0237099565 | AJ103: 0.0237099565 | AK103: 0.004195466894 | AL103: 0.0237099565 | AM103: 0.0237099565 | AN103: -0.0237099565 | AO103: -0.0237099565 | AP103: -0.004195466894 | AQ103: -0.0237099565 | AS103: 0.96240011 | AT103: 5.258237971 | AU103: 0.0004352903044 | AV103: 0.000438035265 | AW103: 0.0002153081273 | AX103: 0.0001300069977
M104: 74 | N104: 1.295 | O104: 130.4571787 | P104: -1 | Q104: 75 | R104: -1 | S104: 75 | T104: -1 | U104: 0.02380486821 | V104: -0.02380486821 | W104: 0.02380486821 | X104: -0.02380486821 | AG104: 0 | AH104: 0.05966995572 | AI104: 0.02380486821 | AJ104: 0.02380486821 | AK104: 0.004183703447 | AL104: 0.02380486821 | AM104: 0.02380486821 | AN104: -0.02380486821 | AO104: -0.02380486821 | AP104: -0.004183703447 | AQ104: -0.02380486821 | AS104: 0.9618949826 | AT104: 5.243494676 | AU104: 0.0004369009898 | AV104: 0.0004396430559 | AW104: 0.0002152610338 | AX104: 0.0001299899354
M105: 75 | N105: 1.3125 | O105: 130.7800615 | P105: -1 | Q105: 75 | R105: -1 | S105: 75 | T105: -1 | U105: 0.02389775317 | V105: -0.02389775317 | W105: 0.02389775317 | X105: -0.02389775317 | AG105: 0 | AH105: 0.05990278379 | AI105: 0.02389775317 | AJ105: 0.02389775317 | AK105: 0.004171933822 | AL105: 0.02389775317 | AM105: 0.02389775317 | AN105: -0.02389775317 | AO105: -0.02389775317 | AP105: -0.004171933822 | AQ105: -0.02389775317 | AS105: 0.9613901202 | AT105: 5.228743639 | AU105: 0.0004385064776 | AV105: 0.0004412456362 | AW105: 0.0002152139506 | AX105: 0.0001299728753
M106: 76 | N106: 1.33 | O106: 131.1027978 | P106: -1 | Q106: 75 | R106: -1 | S106: 75 | T106: -1 | U106: 0.02398864136 | V106: -0.02398864136 | W106: 0.02398864136 | X106: -0.02398864136 | AG106: 0 | AH106: 0.06013060671 | AI106: 0.02398864136 | AJ106: 0.02398864136 | AK106: 0.004160158017 | AL106: 0.02398864136 | AM106: 0.02398864136 | AN106: -0.02398864136 | AO106: -0.02398864136 | AP106: -0.004160158017 | AQ106: -0.02398864136 | AS106: 0.9608855229 | AT106: 5.213984856 | AU106: 0.000440106672 | AV106: 0.0004428429103 | AW106: 0.0002151668777 | AX106: 0.0001299558175
M107: 77 | N107: 1.3475 | O107: 131.4253792 | P107: -1 | Q107: 75 | R107: -1 | S107: 75 | T107: -1 | U107: 0.02407756185 | V107: -0.02407756185 | W107: 0.02407756185 | X107: -0.02407756185 | AG107: 0 | AH107: 0.06035349732 | AI107: 0.02407756185 | AJ107: 0.02407756185 | AK107: 0.004148376027 | AL107: 0.02407756185 | AM107: 0.02407756185 | AN107: -0.02407756185 | AO107: -0.02407756185 | AP107: -0.004148376027 | AQ107: -0.02407756185 | AS107: 0.9603811904 | AT107: 5.199218322 | AU107: 0.0004417014775 | AV107: 0.0004444347827 | AW107: 0.0002151198151 | AX107: 0.0001299387619
M108: 78 | N108: 1.365 | O108: 131.7477976 | P108: -1 | Q108: 75 | R108: -1 | S108: 75 | T108: -1 | U108: 0.02416454277 | V108: -0.02416454277 | W108: 0.02416454277 | X108: -0.02416454277 | AG108: 0 | AH108: 0.06057152616 | AI108: 0.02416454277 | AJ108: 0.02416454277 | AK108: 0.004136587851 | AL108: 0.02416454277 | AM108: 0.02416454277 | AN108: -0.02416454277 | AO108: -0.02416454277 | AP108: -0.004136587851 | AQ108: -0.02416454277 | AS108: 0.9598771226 | AT108: 5.184444033 | AU108: 0.000443290799 | AV108: 0.0004460211583 | AW108: 0.0002150727627 | AX108: 0.0001299217086
M109: 79 | N109: 1.3825 | O109: 132.0700449 | P109: -1 | Q109: 74.99999619 | R109: -1 | S109: 74.99999619 | T109: -1 | U109: 0.02424961143 | V109: -0.02424961143 | W109: 0.02424961143 | X109: -0.02424961143 | AG109: 0 | AH109: 0.06078476165 | AI109: 0.02424961143 | AJ109: 0.02424961143 | AK109: 0.004124793484 | AL109: 0.02424961143 | AM109: 0.02424961143 | AN109: -0.02424961143 | AO109: -0.02424961143 | AP109: -0.004124793484 | AQ109: -0.02424961143 | AS109: 0.9593733194 | AT109: 5.169661987 | AU109: 0.0004448745414 | AV109: 0.0004476019423 | AW109: 0.0002150248568 | AX109: 0.0001299041355
M110: 80 | N110: 1.4 | O110: 132.3921127 | P110: -1 | Q110: 75 | R110: -1 | S110: 75 | T110: -1 | U110: 0.02433279428 | V110: -0.02433279428 | W110: 0.02433279428 | X110: -0.02433279428 | AG110: 0 | AH110: 0.06099327014 | AI110: 0.02433279428 | AJ110: 0.02433279428 | AK110: 0.004112992923 | AL110: 0.02433279428 | AM110: 0.02433279428 | AN110: -0.02433279428 | AO110: -0.02433279428 | AP110: -0.004112992923 | AQ110: -0.02433279428 | AS110: 0.9588697806 | AT110: 5.154872177 | AU110: 0.0004464526101 | AV110: 0.0004491770401 | AW110: 0.0002149795529 | AX110: 0.0001298881305
M111: 81 | N111: 1.4175 | O111: 132.7139928 | P111: -1 | Q111: 75 | R111: -1 | S111: 75 | T111: -1 | U111: 0.02441411702 | V111: -0.02441411702 | W111: 0.02441411702 | X111: -0.02441411702 | AG111: 0 | AH111: 0.06119711602 | AI111: 0.02441411702 | AJ111: 0.02441411702 | AK111: 0.004101186166 | AL111: 0.02441411702 | AM111: 0.02441411702 | AN111: -0.02441411702 | AO111: -0.02441411702 | AP111: -0.004101186166 | AQ111: -0.02441411702 | AS111: 0.9583665061 | AT111: 5.140074601 | AU111: 0.0004480249109 | AV111: 0.0004507463576 | AW111: 0.0002149316675 | AX111: 0.000129870562
M112: 82 | N112: 1.435 | O112: 133.0356772 | P112: -1 | Q112: 75.00000381 | R112: -1 | S112: 75.00000381 | T112: -1 | U112: 0.02449360457 | V112: -0.02449360457 | W112: 0.02449360457 | X112: -0.02449360457 | AG112: 0 | AH112: 0.06139636176 | AI112: 0.02449360457 | AJ112: 0.02449360457 | AK112: 0.004089373208 | AL112: 0.02449360457 | AM112: 0.02449360457 | AN112: -0.02449360457 | AO112: -0.02449360457 | AP112: -0.004089373208 | AQ112: -0.02449360457 | AS112: 0.9578634957 | AT112: 5.125269254 | AU112: 0.0004495913497 | AV112: 0.0004523098006 | AW112: 0.0002148855525 | AX112: 0.0001298540591
M113: 83 | N113: 1.4525 | O113: 133.3571574 | P113: -1 | Q113: 75 | R113: -1 | S113: 75 | T113: -1 | U113: 0.02457128114 | V113: -0.02457128114 | W113: 0.02457128114 | X113: -0.02457128114 | AG113: 0 | AH113: 0.06159106805 | AI113: 0.02457128114 | AJ113: 0.02457128114 | AK113: 0.004077554047 | AL113: 0.02457128114 | AM113: 0.02457128114 | AN113: -0.02457128114 | AO113: -0.02457128114 | AP113: -0.004077554047 | AQ113: -0.02457128114 | AS113: 0.9573607493 | AT113: 5.110456132 | AU113: 0.0004511518326 | AV113: 0.0004538672756 | AW113: 0.0002148367594 | AX113: 0.0001298359339
M114: 84 | N114: 1.47 | O114: 133.6784255 | P114: -1 | Q114: 75 | R114: -1 | S114: 75 | T114: -1 | U114: 0.02464717025 | V114: -0.02464717025 | W114: 0.02464717025 | X114: -0.02464717025 | AG114: 0 | AH114: 0.06178129383 | AI114: 0.02464717025 | AJ114: 0.02464717025 | AK114: 0.004065728679 | AL114: 0.02464717025 | AM114: 0.02464717025 | AN114: -0.02464717025 | AO114: -0.02464717025 | AP114: -0.004065728679 | AQ114: -0.02464717025 | AS114: 0.9568582669 | AT114: 5.095635232 | AU114: 0.0004527062663 | AV114: 0.0004554186892 | AW114: 0.0002147906649 | AX114: 0.0001298194355
M115: 85 | N115: 1.4875 | O115: 133.999473 | P115: -1 | Q115: 75 | R115: -1 | S115: 75 | T115: -1 | U115: 0.02472129474 | V115: -0.02472129474 | W115: 0.02472129474 | X115: -0.02472129474 | AG115: 0 | AH115: 0.06196709637 | AI115: 0.02472129474 | AJ115: 0.02472129474 | AK115: 0.004053897101 | AL115: 0.02472129474 | AM115: 0.02472129474 | AN115: -0.02472129474 | AO115: -0.02472129474 | AP115: -0.004053897101 | AQ115: -0.02472129474 | AS115: 0.9563560481 | AT115: 5.080806548 | AU115: 0.0004542545575 | AV115: 0.0004569639482 | AW115: 0.0002147436846 | AX115: 0.0001298023978
M116: 86 | N116: 1.505 | O116: 134.3202919 | P116: -1 | Q116: 75 | R116: -1 | S116: 75 | T116: -1 | U116: 0.02479367682 | V116: -0.02479367682 | W116: 0.02479367682 | X116: -0.02479367682 | AG116: 0 | AH116: 0.06214853136 | AI116: 0.02479367682 | AJ116: 0.02479367682 | AK116: 0.00404205931 | AL116: 0.02479367682 | AM116: 0.02479367682 | AN116: -0.02479367682 | AO116: -0.02479367682 | AP116: -0.00404205931 | AQ116: -0.02479367682 | AS116: 0.955854093 | AT116: 5.065970077 | AU116: 0.0004557966134 | AV116: 0.00045850296 | AW116: 0.0002146967145 | AX116: 0.0001297853624
M117: 87 | N117: 1.5225 | O117: 134.6408739 | P117: -1 | Q117: 75 | R117: -1 | S117: 75 | T117: -1 | U117: 0.0248643381 | V117: -0.0248643381 | W117: 0.0248643381 | X117: -0.0248643381 | AG117: 0 | AH117: 0.06232565292 | AI117: 0.0248643381 | AJ117: 0.0248643381 | AK117: 0.004030215303 | AL117: 0.0248643381 | AM117: 0.0248643381 | AN117: -0.0248643381 | AO117: -0.0248643381 | AP117: -0.004030215303 | AQ117: -0.0248643381 | AS117: 0.9553524013 | AT117: 5.051125815 | AU117: 0.0004573323414 | AV117: 0.000460035632 | AW117: 0.0002146497548 | AX117: 0.0001297683291
M118: 88 | N118: 1.54 | O118: 134.9612108 | P118: -1 | Q118: 75 | R118: -1 | S118: 75 | T118: -1 | U118: 0.02493329959 | V118: -0.02493329959 | W118: 0.02493329959 | X118: -0.02493329959 | AG118: 0 | AH118: 0.06249851373 | AI118: 0.02493329959 | AJ118: 0.02493329959 | AK118: 0.004018365075 | AL118: 0.02493329959 | AM118: 0.02493329959 | AN118: -0.02493329959 | AO118: -0.02493329959 | AP118: -0.004018365075 | AQ118: -0.02493329959 | AS118: 0.9548509729 | AT118: 5.036273758 | AU118: 0.0004588616493 | AV118: 0.0004615618721 | AW118: 0.0002146028053 | AX118: 0.0001297512982
M119: 89 | N119: 1.5575 | O119: 135.2812944 | P119: -1 | Q119: 75 | R119: -1 | S119: 75 | T119: -1 | U119: 0.02500058172 | V119: -0.02500058172 | W119: 0.02500058172 | X119: -0.02500058172 | AG119: 0 | AH119: 0.06266716502 | AI119: 0.02500058172 | AJ119: 0.02500058172 | AK119: 0.004006508625 | AL119: 0.02500058172 | AM119: 0.02500058172 | AN119: -0.02500058172 | AO119: -0.02500058172 | AP119: -0.004006508625 | AQ119: -0.02500058172 | AS119: 0.9543498077 | AT119: 5.021413901 | AU119: 0.000460384445 | AV119: 0.0004630815883 | AW119: 0.000214555866 | AX119: 0.0001297342694
M120: 90 | N120: 1.575 | O120: 135.6011164 | P120: -1 | Q120: 75 | R120: -1 | S120: 75 | T120: -1 | U120: 0.02506620439 | V120: -0.02506620439 | W120: 0.02506620439 | X120: -0.02506620439 | AG120: 0 | AH120: 0.06283165667 | AI120: 0.02506620439 | AJ120: 0.02506620439 | AK120: 0.003994645949 | AL120: 0.02506620439 | AM120: 0.02506620439 | AN120: -0.02506620439 | AO120: -0.02506620439 | AP120: -0.003994645949 | AQ120: -0.02506620439 | AS120: 0.9538489056 | AT120: 5.006546241 | AU120: 0.0004619006369 | AV120: 0.0004645946892 | AW120: 0.0002145089371 | AX120: 0.0001297172429
M121: 91 | N121: 1.5925 | O121: 135.9206688 | P121: -1 | Q121: 75 | R121: -1 | S121: 75 | T121: -1 | U121: 0.02513018698 | V121: -0.02513018698 | W121: 0.02513018698 | X121: -0.02513018698 | AG121: 0 | AH121: 0.06299203723 | AI121: 0.02513018698 | AJ121: 0.02513018698 | AK121: 0.003982777043 | AL121: 0.02513018698 | AM121: 0.02513018698 | AN121: -0.02513018698 | AO121: -0.02513018698 | AP121: -0.003982777043 | AQ121: -0.02513018698 | AS121: 0.9533482663 | AT121: 4.991670774 | AU121: 0.0004634101336 | AV121: 0.0004661010834 | AW121: 0.0002144620184 | AX121: 0.0001297002187
M122: 92 | N122: 1.61 | O122: 136.2399432 | P122: -1 | Q122: 75 | R122: -1 | S122: 75 | T122: -1 | U122: 0.02519254836 | V122: -0.02519254836 | W122: 0.02519254836 | X122: -0.02519254836 | AG122: 0 | AH122: 0.06314835402 | AI122: 0.02519254836 | AJ122: 0.02519254836 | AK122: 0.003970901904 | AL122: 0.02519254836 | AM122: 0.02519254836 | AN122: -0.02519254836 | AO122: -0.02519254836 | AP122: -0.003970901904 | AQ122: -0.02519254836 | AS122: 0.9528478898 | AT122: 4.976787494 | AU122: 0.0004649128442 | AV122: 0.0004676006801 | AW122: 0.00021441511 | AX122: 0.0001296831966
M123: 93 | N123: 1.6275 | O123: 136.5589315 | P123: -1 | Q123: 74.99999619 | R123: -1 | S123: 74.99999619 | T123: -1 | U123: 0.0252533069 | V123: -0.0252533069 | W123: 0.0252533069 | X123: -0.0252533069 | AG123: 0 | AH123: 0.06330065311 | AI123: 0.0252533069 | AJ123: 0.0252533069 | AK123: 0.003959020529 | AL123: 0.0252533069 | AM123: 0.0252533069 | AN123: -0.0252533069 | AO123: -0.0252533069 | AP123: -0.003959020529 | AQ123: -0.0252533069 | AS123: 0.952347776 | AT123: 4.961896399 | AU123: 0.0004664086778 | AV123: 0.0004690933885 | AW123: 0.0002143671979 | AX123: 0.0001296655635
M124: 94 | N124: 1.645 | O124: 136.8776255 | P124: -1 | Q124: 75 | R124: -1 | S124: 75 | T124: -1 | U124: 0.02531248053 | V124: -0.02531248053 | W124: 0.02531248053 | X124: -0.02531248053 | AG124: 0 | AH124: 0.06344897939 | AI124: 0.02531248053 | AJ124: 0.02531248053 | AK124: 0.003947132915 | AL124: 0.02531248053 | AM124: 0.02531248053 | AN124: -0.02531248053 | AO124: -0.02531248053 | AP124: -0.003947132915 | AQ124: -0.02531248053 | AS124: 0.9518479246 | AT124: 4.946997484 | AU124: 0.000467897544 | AV124: 0.0004705791184 | AW124: 0.0002143223378 | AX124: 0.0001296497726
M125: 95 | N125: 1.6625 | O125: 137.1960168 | P125: -1 | Q125: 75 | R125: -1 | S125: 75 | T125: -1 | U125: 0.0253700867 | V125: -0.0253700867 | W125: 0.0253700867 | X125: -0.0253700867 | AG125: 0 | AH125: 0.06359337665 | AI125: 0.0253700867 | AJ125: 0.0253700867 | AK125: 0.003935239058 | AL125: 0.0253700867 | AM125: 0.0253700867 | AN125: -0.0253700867 | AO125: -0.0253700867 | AP125: -0.003935239058 | AQ125: -0.0253700867 | AS125: 0.9513483356 | AT125: 4.932090745 | AU125: 0.0004693793528 | AV125: 0.0004720577798 | AW125: 0.0002142744462 | AX125: 0.0001296321439
M126: 96 | N126: 1.68 | O126: 137.5140975 | P126: -1 | Q126: 75.00000381 | R126: -1 | S126: 75.00000381 | T126: -1 | U126: 0.02542614244 | V126: -0.02542614244 | W126: 0.02542614244 | X126: -0.02542614244 | AG126: 0 | AH126: 0.06373388755 | AI126: 0.02542614244 | AJ126: 0.02542614244 | AK126: 0.003923338955 | AL126: 0.02542614244 | AM126: 0.02542614244 | AN126: -0.02542614244 | AO126: -0.02542614244 | AP126: -0.003923338955 | AQ126: -0.02542614244 | AS126: 0.9508490088 | AT126: 4.917176178 | AU126: 0.0004708540143 | AV126: 0.000473529283 | AW126: 0.0002142286247 | AX126: 0.0001296157637
M127: 97 | N127: 1.6975 | O127: 137.8318591 | P127: -1 | Q127: 75 | R127: -1 | S127: 75 | T127: -1 | U127: 0.02548066436 | V127: -0.02548066436 | W127: 0.02548066436 | X127: -0.02548066436 | AG127: 0 | AH127: 0.06387055374 | AI127: 0.02548066436 | AJ127: 0.02548066436 | AK127: 0.003911432603 | AL127: 0.02548066436 | AM127: 0.02548066436 | AN127: -0.02548066436 | AO127: -0.02548066436 | AP127: -0.003911432603 | AQ127: -0.02548066436 | AS127: 0.9503499441 | AT127: 4.902253779 | AU127: 0.0004723214391 | AV127: 0.0004749935386 | AW127: 0.0002141796757 | AX127: 0.0001295974871
M128: 98 | N128: 1.715 | O128: 138.1492936 | P128: -1 | Q128: 75 | R128: -1 | S128: 75 | T128: -1 | U128: 0.02553366866 | V128: -0.02553366866 | W128: 0.02553366866 | X128: -0.02553366866 | AG128: 0 | AH128: 0.06400341583 | AI128: 0.02553366866 | AJ128: 0.02553366866 | AK128: 0.003899519999 | AL128: 0.02553366866 | AM128: 0.02553366866 | AN128: -0.02553366866 | AO128: -0.02553366866 | AP128: -0.003899519999 | AQ128: -0.02553366866 | AS128: 0.9498511413 | AT128: 4.887323543 | AU128: 0.0004737815379 | AV128: 0.0004764504576 | AW128: 0.0002141338747 | AX128: 0.0001295811113
M129: 99 | N129: 1.7325 | O129: 138.4663926 | P129: -1 | Q129: 75 | R129: -1 | S129: 75 | T129: -1 | U129: 0.02558517116 | V129: -0.02558517116 | W129: 0.02558517116 | X129: -0.02558517116 | AG129: 0 | AH129: 0.06413251343 | AI129: 0.02558517116 | AJ129: 0.02558517116 | AK129: 0.003887601138 | AL129: 0.02558517116 | AM129: 0.02558517116 | AN129: -0.02558517116 | AO129: -0.02558517116 | AP129: -0.003887601138 | AQ129: -0.02558517116 | AS129: 0.9493526004 | AT129: 4.872385467 | AU129: 0.0004752342221 | AV129: 0.0004778999512 | AW129: 0.0002140870381 | AX129: 0.0001295641049
M130: 100 | N130: 1.75 | O130: 138.7831481 | P130: -1 | Q130: 75 | R130: -1 | S130: 75 | T130: -1 | U130: 0.02563518727 | V130: -0.02563518727 | W130: 0.02563518727 | X130: -0.02563518727 | AG130: 0 | AH130: 0.06425788524 | AI130: 0.02563518727 | AJ130: 0.02563518727 | AK130: 0.003875676019 | AL130: 0.02563518727 | AM130: 0.02563518727 | AN130: -0.02563518727 | AO130: -0.02563518727 | AP130: -0.003875676019 | AQ130: -0.02563518727 | AS130: 0.9488543211 | AT130: 4.857439546 | AU130: 0.000476679403 | AV130: 0.0004793419311 | AW130: 0.0002140402116 | AX130: 0.0001295471007
M131: 101 | N131: 1.7675 | O131: 139.0995518 | P131: -1 | Q131: 75 | R131: -1 | S131: 75 | T131: -1 | U131: 0.02568373208 | V131: -0.02568373208 | W131: 0.02568373208 | X131: -0.02568373208 | AG131: 0 | AH131: 0.06437956902 | AI131: 0.02568373208 | AJ131: 0.02568373208 | AK131: 0.003863744637 | AL131: 0.02568373208 | AM131: 0.02568373208 | AN131: -0.02568373208 | AO131: -0.02568373208 | AP131: -0.003863744637 | AQ131: -0.02568373208 | AS131: 0.9483563033 | AT131: 4.842485777 | AU131: 0.0004781169924 | AV131: 0.0004807763092 | AW131: 0.0002139933955 | AX131: 0.0001295300988
M132: 102 | N132: 1.785 | O132: 139.4155954 | P132: -1 | Q132: 75 | R132: -1 | S132: 75 | T132: -1 | U132: 0.02573082029 | V132: -0.02573082029 | W132: 0.02573082029 | X132: -0.02573082029 | AG132: 0 | AH132: 0.06449760166 | AI132: 0.02573082029 | AJ132: 0.02573082029 | AK132: 0.00385180699 | AL132: 0.02573082029 | AM132: 0.02573082029 | AN132: -0.02573082029 | AO132: -0.02573082029 | AP132: -0.00385180699 | AQ132: -0.02573082029 | AS132: 0.9478585469 | AT132: 4.827524155 | AU132: 0.0004795469026 | AV132: 0.0004822029976 | AW132: 0.0002139465895 | AX132: 0.0001295130991
M133: 103 | N133: 1.8025 | O133: 139.7312708 | P133: -1 | Q133: 75 | R133: -1 | S133: 75 | T133: -1 | U133: 0.02577646627 | V133: -0.02577646627 | W133: 0.02577646627 | X133: -0.02577646627 | AG133: 0 | AH133: 0.06461201918 | AI133: 0.02577646627 | AJ133: 0.02577646627 | AK133: 0.003839863074 | AL133: 0.02577646627 | AM133: 0.02577646627 | AN133: -0.02577646627 | AO133: -0.02577646627 | AP133: -0.003839863074 | AQ133: -0.02577646627 | AS133: 0.9473610518 | AT133: 4.812554676 | AU133: 0.000480969046 | AV133: 0.0004836219092 | AW133: 0.0002138997938 | AX133: 0.0001294961016
M134: 104 | N134: 1.82 | O134: 140.0465698 | P134: -1 | Q134: 74.99999619 | R134: -1 | S134: 74.99999619 | T134: -1 | U134: 0.02582068408 | V134: -0.02582068408 | W134: 0.02582068408 | X134: -0.02582068408 | AG134: 0 | AH134: 0.06472285678 | AI134: 0.02582068408 | AJ134: 0.02582068408 | AK134: 0.003827912886 | AL134: 0.02582068408 | AM134: 0.02582068408 | AN134: -0.02582068408 | AO134: -0.02582068408 | AP134: -0.003827912886 | AQ134: -0.02582068408 | AS134: 0.9468638177 | AT134: 4.797577336 | AU134: 0.0004823833354 | AV134: 0.0004850329566 | AW134: 0.0002138518773 | AX134: 0.0001294784215
M135: 105 | N135: 1.8375 | O135: 140.3614841 | P135: -1 | Q135: 75 | R135: -1 | S135: 75 | T135: -1 | U135: 0.02586348743 | V135: -0.02586348743 | W135: 0.02586348743 | X135: -0.02586348743 | AG135: 0 | AH135: 0.06483014886 | AI135: 0.02586348743 | AJ135: 0.02586348743 | AK135: 0.003815956422 | AL135: 0.02586348743 | AM135: 0.02586348743 | AN135: -0.02586348743 | AO135: -0.02586348743 | AP135: -0.003815956422 | AQ135: -0.02586348743 | AS135: 0.9463668447 | AT135: 4.782592131 | AU135: 0.0004837896838 | AV135: 0.0004864360533 | AW135: 0.0002138073642 | AX135: 0.0001294627982
M136: 106 | N136: 1.855 | O136: 140.6760056 | P136: -1 | Q136: 75 | R136: -1 | S136: 75 | T136: -1 | U136: 0.02590488973 | V136: -0.02590488973 | W136: 0.02590488973 | X136: -0.02590488973 | AG136: 0 | AH136: 0.06493392905 | AI136: 0.02590488973 | AJ136: 0.02590488973 | AK136: 0.003803993679 | AL136: 0.02590488973 | AM136: 0.02590488973 | AN136: -0.02590488973 | AO136: -0.02590488973 | AP136: -0.003803993679 | AQ136: -0.02590488973 | AS136: 0.9458701325 | AT136: 4.767599056 | AU136: 0.0004851880049 | AV136: 0.0004878311127 | AW136: 0.0002137594681 | AX136: 0.0001294451225
M137: 107 | N137: 1.8725 | O137: 140.990126 | P137: -1 | Q137: 75.00000381 | R137: -1 | S137: 75.00000381 | T137: -1 | U137: 0.02594490411 | V137: -0.02594490411 | W137: 0.02594490411 | X137: -0.02594490411 | AG137: 0 | AH137: 0.06503423021 | AI137: 0.02594490411 | AJ137: 0.02594490411 | AK137: 0.003792024655 | AL137: 0.02594490411 | AM137: 0.02594490411 | AN137: -0.02594490411 | AO137: -0.02594490411 | AP137: -0.003792024655 | AQ137: -0.02594490411 | AS137: 0.945373681 | AT137: 4.752598109 | AU137: 0.0004865782123 | AV137: 0.0004892180487 | AW137: 0.0002137138763 | AX137: 0.0001294288383
M138: 108 | N138: 1.89 | O138: 141.3038371 | P138: -1 | Q138: 75 | R138: -1 | S138: 75 | T138: -1 | U138: 0.02598354338 | V138: -0.02598354338 | W138: 0.02598354338 | X138: -0.02598354338 | AG138: 0 | AH138: 0.0651310845 | AI138: 0.02598354338 | AJ138: 0.02598354338 | AK138: 0.003780049344 | AL138: 0.02598354338 | AM138: 0.02598354338 | AN138: -0.02598354338 | AO138: -0.02598354338 | AP138: -0.003780049344 | AQ138: -0.02598354338 | AS138: 0.9448774901 | AT138: 4.737589283 | AU138: 0.0004879602202 | AV138: 0.0004905967757 | AW138: 0.0002136648059 | AX138: 0.0001294104433
M139: 109 | N139: 1.9075 | O139: 141.6171308 | P139: -1 | Q139: 75 | R139: -1 | S139: 75 | T139: -1 | U139: 0.02602082009 | V139: -0.02602082009 | W139: 0.02602082009 | X139: -0.02602082009 | AG139: 0 | AH139: 0.06522452337 | AI139: 0.02602082009 | AJ139: 0.02602082009 | AK139: 0.003768067746 | AL139: 0.02602082009 | AM139: 0.02602082009 | AN139: -0.02602082009 | AO139: -0.02602082009 | AP139: -0.003768067746 | AQ139: -0.02602082009 | AS139: 0.9443815596 | AT139: 4.722572576 | AU139: 0.000489333943 | AV139: 0.0004919672083 | AW139: 0.0002136192345 | AX139: 0.0001293941636
M140: 110 | N140: 1.925 | O140: 141.9299988 | P140: -1 | Q140: 75 | R140: -1 | S140: 75 | T140: -1 | U140: 0.02605674652 | V140: -0.02605674652 | W140: 0.02605674652 | X140: -0.02605674652 | AG140: 0 | AH140: 0.06531457756 | AI140: 0.02605674652 | AJ140: 0.02605674652 | AK140: 0.003756079855 | AL140: 0.02605674652 | AM140: 0.02605674652 | AN140: -0.02605674652 | AO140: -0.02605674652 | AP140: -0.003756079855 | AQ140: -0.02605674652 | AS140: 0.9438858894 | AT140: 4.707547983 | AU140: 0.0004906992956 | AV140: 0.0004933292613 | AW140: 0.0002135725104 | AX140: 0.0001293771817
M141: 111 | N141: 1.9425 | O141: 142.2424328 | P141: -1 | Q141: 75 | R141: -1 | S141: 75 | T141: -1 | U141: 0.02609133466 | V141: -0.02609133466 | W141: 0.02609133466 | X141: -0.02609133466 | AG141: 0 | AH141: 0.06540127719 | AI141: 0.02609133466 | AJ141: 0.02609133466 | AK141: 0.003744085669 | AL141: 0.02609133466 | AM141: 0.02609133466 | AN141: -0.02609133466 | AO141: -0.02609133466 | AP141: -0.003744085669 | AQ141: -0.02609133466 | AS141: 0.9433904794 | AT141: 4.6925155 | AU141: 0.0004920561932 | AV141: 0.0004946828499 | AW141: 0.0002135257965 | AX141: 0.0001293602021
M142: 112 | N142: 1.96 | O142: 142.5544248 | P142: -1 | Q142: 75 | R142: -1 | S142: 75 | T142: -1 | U142: 0.02612459629 | V142: -0.02612459629 | W142: 0.02612459629 | X142: -0.02612459629 | AG142: 0 | AH142: 0.06548465172 | AI142: 0.02612459629 | AJ142: 0.02612459629 | AK142: 0.003732085184 | AL142: 0.02612459629 | AM142: 0.02612459629 | AN142: -0.02612459629 | AO142: -0.02612459629 | AP142: -0.003732085184 | AQ142: -0.02612459629 | AS142: 0.9428953294 | AT142: 4.677475123 | AU142: 0.0004934045511 | AV142: 0.00049602789 | AW142: 0.0002134790929 | AX142: 0.0001293432246
M143: 113 | N143: 1.9775 | O143: 142.8659702 | P143: -1 | Q143: 75 | R143: -1 | S143: 75 | T143: -1 | U143: 0.02615654289 | V143: -0.02615654289 | W143: 0.02615654289 | X143: -0.02615654289 | AG143: 0 | AH143: 0.06556472998 | AI143: 0.02615654289 | AJ143: 0.02615654289 | AK143: 0.003720078397 | AL143: 0.02615654289 | AM143: 0.02615654289 | AN143: -0.02615654289 | AO143: -0.02615654289 | AP143: -0.003720078397 | AQ143: -0.02615654289 | AS143: 0.9424004392 | AT143: 4.662426847 | AU143: 0.0004947454847 | AV143: 0.0004973654963 | AW143: 0.0002134323994 | AX143: 0.0001293262495
M144: 114 | N144: 1.995 | O144: 143.1770495 | P144: -1 | Q144: 75 | R144: -1 | S144: 75 | T144: -1 | U144: 0.02618718574 | V144: -0.02618718574 | W144: 0.02618718574 | X144: -0.02618718574 | AG144: 0 | AH144: 0.06564154021 | AI144: 0.02618718574 | AJ144: 0.02618718574 | AK144: 0.003708065306 | AL144: 0.02618718574 | AM144: 0.02618718574 | AN144: -0.02618718574 | AO144: -0.02618718574 | AP144: -0.003708065306 | AQ144: -0.02618718574 | AS144: 0.9419058089 | AT144: 4.64737067 | AU144: 0.0004960741124 | AV144: 0.0004986907891 | AW144: 0.0002133857162 | AX144: 0.0001293092765
M145: 115 | N145: 2.0125 | O145: 143.4876659 | P145: -1 | Q145: 75 | R145: -1 | S145: 75 | T145: -1 | U145: 0.02621653586 | V145: -0.02621653586 | W145: 0.02621653586 | X145: -0.02621653586 | AG145: 0 | AH145: 0.06571511006 | AI145: 0.02621653586 | AJ145: 0.02621653586 | AK145: 0.003696045905 | AL145: 0.02621653586 | AM145: 0.02621653586 | AN145: -0.02621653586 | AO145: -0.02621653586 | AP145: -0.003696045905 | AQ145: -0.02621653586 | AS145: 0.9414114381 | AT145: 4.632306585 | AU145: 0.0004973975473 | AV145: 0.0005000108793 | AW145: 0.0002133390432 | AX145: 0.0001292923058
M146: 116 | N146: 2.03 | O146: 143.7978074 | P146: -1 | Q146: 75 | R146: -1 | S146: 75 | T146: -1 | U146: 0.02624460407 | V146: -0.02624460407 | W146: 0.02624460407 | X146: -0.02624460407 | AG146: 0 | AH146: 0.06578546662 | AI146: 0.02624460407 | AJ146: 0.02624460407 | AK146: 0.003684020193 | AL146: 0.02624460407 | AM146: 0.02624460407 | AN146: -0.02624460407 | AO146: -0.02624460407 | AP146: -0.003684020193 | AQ146: -0.02624460407 | AS146: 0.9409173268 | AT146: 4.61723459 | AU146: 0.0004987109085 | AV146: 0.0005013208876 | AW146: 0.0002132923804 | AX146: 0.0001292753373
M147: 117 | N147: 2.0475 | O147: 144.1074656 | P147: -1 | Q147: 75 | R147: -1 | S147: 75 | T147: -1 | U147: 0.02627140094 | V147: -0.02627140094 | W147: 0.02627140094 | X147: -0.02627140094 | AG147: 0 | AH147: 0.06585263641 | AI147: 0.02627140094 | AJ147: 0.02627140094 | AK147: 0.003671988166 | AL147: 0.02627140094 | AM147: 0.02627140094 | AN147: -0.02627140094 | AO147: -0.02627140094 | AP147: -0.003671988166 | AQ147: -0.02627140094 | AS147: 0.9404234749 | AT147: 4.60215468 | AU147: 0.0005000153127 | AV147: 0.0005026219305 | AW147: 0.0002132457278 | AX147: 0.000129258371
M148: 118 | N148: 2.065 | O148: 144.4166326 | P148: -1 | Q148: 75 | R148: -1 | S148: 75 | T148: -1 | U148: 0.02629693684 | V148: -0.02629693684 | W148: 0.02629693684 | X148: -0.02629693684 | AG148: 0 | AH148: 0.06591664543 | AI148: 0.02629693684 | AJ148: 0.02629693684 | AK148: 0.00365994982 | AL148: 0.02629693684 | AM148: 0.02629693684 | AN148: -0.02629693684 | AO148: -0.02629693684 | AP148: -0.00365994982 | AQ148: -0.02629693684 | AS148: 0.9399298821 | AT148: 4.587066851 | AU148: 0.0005013106774 | AV148: 0.0005039139256 | AW148: 0.0002131990854 | AX148: 0.0001292414069
M149: 119 | N149: 2.0825 | O149: 144.7252999 | P149: -1 | Q149: 75 | R149: -1 | S149: 75 | T149: -1 | U149: 0.02632122195 | V149: -0.02632122195 | W149: 0.02632122195 | X149: -0.02632122195 | AG149: 0 | AH149: 0.06597751915 | AI149: 0.02632122195 | AJ149: 0.02632122195 | AK149: 0.003647905152 | AL149: 0.02632122195 | AM149: 0.02632122195 | AN149: -0.02632122195 | AO149: -0.02632122195 | AP149: -0.003647905152 | AQ149: -0.02632122195 | AS149: 0.9394365484 | AT149: 4.571971099 | AU149: 0.0005025969206 | AV149: 0.000505196791 | AW149: 0.0002131524532 | AX149: 0.0001292244451
M150: 120 | N150: 2.1 | O150: 145.0334595 | P150: -1 | Q150: 75 | R150: -1 | S150: 75 | T150: -1 | U150: 0.02634426621 | V150: -0.02634426621 | W150: 0.02634426621 | X150: -0.02634426621 | AG150: 0 | AH150: 0.06603528256 | AI150: 0.02634426621 | AJ150: 0.02634426621 | AK150: 0.00363585416 | AL150: 0.02634426621 | AM150: 0.02634426621 | AN150: -0.02634426621 | AO150: -0.02634426621 | AP150: -0.00363585416 | AQ150: -0.02634426621 | AS150: 0.9389434737 | AT150: 4.556867419 | AU150: 0.0005038739604 | AV150: 0.000506470445 | AW150: 0.0002131058312 | AX150: 0.0001292074855
M151: 121 | N151: 2.1175 | O151: 145.3411031 | P151: -1 | Q151: 75 | R151: -1 | S151: 75 | T151: -1 | U151: 0.0263660794 | V151: -0.0263660794 | W151: 0.0263660794 | X151: -0.0263660794 | AG151: 0 | AH151: 0.06608996012 | AI151: 0.0263660794 | AJ151: 0.0263660794 | AK151: 0.003623796838 | AL151: 0.0263660794 | AM151: 0.0263660794 | AN151: -0.0263660794 | AO151: -0.0263660794 | AP151: -0.003623796838 | AQ151: -0.0263660794 | AS151: 0.9384506577 | AT151: 4.541755808 | AU151: 0.0005051417155 | AV151: 0.0005077348065 | AW151: 0.0002130592194 | AX151: 0.0001291905282
M152: 122 | N152: 2.135 | O152: 145.6482225 | P152: -1 | Q152: 75 | R152: -1 | S152: 75 | T152: -1 | U152: 0.02638667109 | V152: -0.02638667109 | W152: 0.02638667109 | X152: -0.02638667109 | AG152: 0 | AH152: 0.06614157583 | AI152: 0.02638667109 | AJ152: 0.02638667109 | AK152: 0.003611733186 | AL152: 0.02638667109 | AM152: 0.02638667109 | AN152: -0.02638667109 | AO152: -0.02638667109 | AP152: -0.003611733186 | AQ152: -0.02638667109 | AS152: 0.9379581005 | AT152: 4.526636262 | AU152: 0.0005064001049 | AV152: 0.0005089897945 | AW152: 0.0002130126178 | AX152: 0.000129173573
M153: 123 | N153: 2.1525 | O153: 145.9548095 | P153: -1 | Q153: 75.00000191 | R153: -1 | S153: 75.00000191 | T153: -1 | U153: 0.02640605067 | V153: -0.02640605067 | W153: 0.02640605067 | X153: -0.02640605067 | AG153: 0 | AH153: 0.06619015323 | AI153: 0.02640605067 | AJ153: 0.02640605067 | AK153: 0.003599663198 | AL153: 0.02640605067 | AM153: 0.02640605067 | AN153: -0.02640605067 | AO153: -0.02640605067 | AP153: -0.003599663198 | AQ153: -0.02640605067 | AS153: 0.9374658017 | AT153: 4.511508775 | AU153: 0.0005076490478 | AV153: 0.0005102353284 | AW153: 0.0002129666924 | AX153: 0.0001291570241
M154: 124 | N154: 2.17 | O154: 146.2608558 | P154: -1 | Q154: 75 | R154: -1 | S154: 75 | T154: -1 | U154: 0.02642422735 | V154: -0.02642422735 | W154: 0.02642422735 | X154: -0.02642422735 | AG154: 0 | AH154: 0.06623571541 | AI154: 0.02642422735 | AJ154: 0.02642422735 | AK154: 0.003587586871 | AL154: 0.02642422735 | AM154: 0.02642422735 | AN154: -0.02642422735 | AO154: -0.02642422735 | AP154: -0.003587586871 | AQ154: -0.02642422735 | AS154: 0.9369737613 | AT154: 4.496373344 | AU154: 0.000508888464 | AV154: 0.0005114713281 | AW154: 0.000212918779 | AX154: 0.0001291392654
M155: 125 | N155: 2.1875 | O155: 146.5663534 | P155: -1 | Q155: 75 | R155: -1 | S155: 75 | T155: -1 | U155: 0.02644121016 | V155: -0.02644121016 | W155: 0.02644121016 | X155: -0.02644121016 | AG155: 0 | AH155: 0.06627828501 | AI155: 0.02644121016 | AJ155: 0.02644121016 | AK155: 0.003575504203 | AL155: 0.02644121016 | AM155: 0.02644121016 | AN155: -0.02644121016 | AO155: -0.02644121016 | AP155: -0.003575504203 | AQ155: -0.02644121016 | AS155: 0.9364819792 | AT155: 4.481229966 | AU155: 0.0005101182733 | AV155: 0.0005126977137 | AW155: 0.0002128728741 | AX155: 0.0001291227209
M156: 126 | N156: 2.205 | O156: 146.8712939 | P156: -1 | Q156: 75 | R156: -1 | S156: 75 | T156: -1 | U156: 0.02645700797 | V156: -0.02645700797 | W156: 0.02645700797 | X156: -0.02645700797 | AG156: 0 | AH156: 0.06631788424 | AI156: 0.02645700797 | AJ156: 0.02645700797 | AK156: 0.00356341519 | AL156: 0.02645700797 | AM156: 0.02645700797 | AN156: -0.02645700797 | AO156: -0.02645700797 | AP156: -0.00356341519 | AQ156: -0.02645700797 | AS156: 0.9359904552 | AT156: 4.466078635 | AU156: 0.0005113383963 | AV156: 0.0005139144057 | AW156: 0.0002128263132 | AX156: 0.0001291057747
M157: 127 | N157: 2.2225 | O157: 147.1756692 | P157: -1 | Q157: 74.99999809 | R157: -1 | S157: 74.99999809 | T157: -1 | U157: 0.02647162947 | V157: -0.02647162947 | W157: 0.02647162947 | X157: -0.02647162947 | AG157: 0 | AH157: 0.06635453492 | AI157: 0.02647162947 | AJ157: 0.02647162947 | AK157: 0.003551319828 | AL157: 0.02647162947 | AM157: 0.02647162947 | AN157: -0.02647162947 | AO157: -0.02647162947 | AP157: -0.003551319828 | AQ157: -0.02647162947 | AS157: 0.9354991892 | AT157: 4.450919347 | AU157: 0.0005125487537 | AV157: 0.000515121325 | AW157: 0.0002127790754 | AX157: 0.0001290884138
M158: 128 | N158: 2.24 | O158: =CubicSpline(OFFSET($B$18,0,0,NumCurvePoints,1),OFFSET($C$18,0,0,NumCurvePoints,1),N158) -> 147.479471 | P158: =IF(ISERROR(MATCH(M158,$A$20:$A$27,0)),-1,OFFSET($C$17,MATCH(M158,$A$20:$A$27,0),0,1,1)) -> -1 | Q158: =CubicSpline(OFFSET($B$18,0,0,NumCurvePoints2,1),OFFSET($D$18,0,0,NumCurvePoints2,1),N158) -> 75 | R158: =IF(ISERROR(MATCH(M158,$A$20:$A$27,0)),-1,OFFSET($D$17,MATCH(M158,$A$20:$A$27,0),0,1,1)) -> -1 | S158: =CubicSpline(OFFSET($B$18,0,0,NumCurvePoints3,1),OFFSET($E$18,0,0,NumCurvePoints3,1),N158) -> 75 | T158: =IF(ISERROR(MATCH(M158,$A$20:$A$27,0)),-1,OFFSET($E$17,MATCH(M158,$A$20:$A$27,0),0,1,1)) -> -1 | U158: 0.02648508321 | V158: -0.02648508321 | W158: 0.02648508321 | X158: -0.02648508321 | AG158: =(SwapRate1-InterestRate)*AT158 -> 0 | AH158: =MAX(0.0000000001,SQRT(N158)*AT158*IRVol) -> 0.06638825842 | AI158: 0.02648508321 | AJ158: =AI158-IF(ThresholdB="",0,1)*IF((ThresholdB-AG158)/AH158>6,0,(1-NORMSDIST((ThresholdB-AG158)/AH158))*(AG158+AH158*NORMDIST(((ThresholdB-AG158)/AH158),0,1,FALSE)/(1-NORMSDIST((ThresholdB-AG158)/AH158))-ThresholdB)) -> 0.02648508321 | AK158: =-InitialMargin2*NORMSDIST(-InitialMargin2/(IRVol*SQRT(MPR/250)*AT158))+(IRVol*SQRT(MPR/250)*AT158)*NORMDIST(-InitialMargin2/(IRVol*SQRT(MPR/250)*AT158),0,1,FALSE) -> 0.003539218115 | AL158: =IF(OR(BreakMat="",BreakMat=0,BreakMat>N158),IF(AND(ThresholdB="",ThresholdA=0,ThresholdA<>""),AJ158+AK158,IF(AND(ThresholdB=0,ThresholdB<>""),AK158,IF(ThresholdB>0,MAX(AJ158,AK158),AJ158)))) -> 0.02648508321 | AM158: 0.02648508321 | AN158: -0.02648508321 | AO158: =AN158+IF(AND(ThresholdA<>"",(ThresholdA+AG158)/AH158<6),(1-NORMSDIST((ThresholdA+AG158)/AH158))*(-AG158+AH158*NORMDIST(((ThresholdA+AG158)/AH158),0,1,FALSE)/(1-NORMSDIST((ThresholdA+AG158)/AH158))-ThresholdA)) -> -0.02648508321 | AP158: =InitialMargin1*NORMSDIST(-InitialMargin1/(IRVol*AT158*SQRT(MPR/250)))-(IRVol*AT158*SQRT(MPR/250))*NORMDIST(-InitialMargin1/(IRVol*AT158*SQRT(MPR/250)),0,1,FALSE) -> -0.003539218115 | AQ158: =IF(OR(BreakMat="",BreakMat=0,BreakMat>N158),IF(AND(ThresholdA="",ThresholdB=0,ThresholdB<>""),AO158+AP158,IF(AND(ThresholdA=0,ThresholdA<>""),AP158,MIN(AO158,AP158)))) -> -0.02648508321 | AS158: =EXP(-InterestRate*N158) -> 0.935008181 | AT158: =MAX((1-EXP(-(Maturity1-N158)*InterestRate))/InterestRate,0) -> 4.435752098 | AU158: 0.0005137492665 | AV158: 0.0005163183929 | AW158: 0.0002127339092 | AX158: 0.0001290723058
M159: 129 | N159: 2.2575 | O159: 147.7826911 | P159: -1 | Q159: 75 | R159: -1 | S159: 75 | T159: -1 | U159: =AI159 -> 0.02649737754 | V159: =AN159 -> -0.02649737754 | W159: =AL159 -> 0.02649737754 | X159: =AQ159 -> -0.02649737754 | AG159: 0 | AH159: 0.06641907576 | AI159: =(AG159*NORMSDIST(AG159/AH159)+AH159*NORMDIST(AG159/AH159,0,1,FALSE)) -> 0.02649737754 | AJ159: 0.02649737754 | AK159: 0.003527110047 | AL159: 0.02649737754 | AM159: =MAX(AL159,AM158) -> 0.02649737754 | AN159: =(AG159*NORMSDIST(-AG159/AH159)-AH159*NORMDIST(-AG159/AH159,0,1,FALSE)) -> -0.02649737754 | AO159: -0.02649737754 | AP159: -0.003527110047 | AQ159: -0.02649737754 | AS159: 0.9345174305 | AT159: 4.420576885 | AU159: =EXP(-N158*O158/CntrptyLGD/10000)-EXP(-N159*O159/CntrptyLGD/10000) -> 0.0005149398562 | AV159: =EXP(-N158*(O158+1)/CntrptyLGD/10000)-EXP(-N159*(O159+1)/CntrptyLGD/10000) -> 0.0005175055309 | AW159: =EXP(-N158*Q158/OwnLGD/10000)-EXP(-N159*Q159/OwnLGD/10000) -> 0.0002126866918 | AX159: =EXP(-N158*S158/10000)-EXP(-N159*S159/10000) -> 0.0001290549493
M160: =M159+1 -> 130 | N160: =N159+Maturity1/400 -> 2.275 | O160: 148.0853214 | P160: -1 | Q160: 75 | R160: -1 | S160: 75 | T160: -1 | U160: 0.02650852072 | V160: -0.02650852072 | W160: 0.02650852072 | X160: -0.02650852072 | AG160: 0 | AH160: 0.06644700754 | AI160: 0.02650852072 | AJ160: 0.02650852072 | AK160: 0.00351499562 | AL160: 0.02650852072 | AM160: 0.02650852072 | AN160: -0.02650852072 | AO160: -0.02650852072 | AP160: -0.00351499562 | AQ160: -0.02650852072 | AS160: 0.9340269377 | AT160: 4.405393703 | AU160: 0.0005161204446 | AV160: 0.000518682661 | AW160: 0.0002126401717 | AX160: 0.0001290380119
M161: 131 | N161: 2.2925 | O161: 148.3873536 | P161: -1 | Q161: 75 | R161: -1 | S161: 75 | T161: -1 | U161: 0.02651852079 | V161: -0.02651852079 | W161: 0.02651852079 | X161: -0.02651852079 | AG161: 0 | AH161: 0.06647207402 | AI161: 0.02651852079 | AJ161: 0.02651852079 | AK161: 0.003502874831 | AL161: 0.02651852079 | AM161: 0.02651852079 | AN161: -0.02651852079 | AO161: -0.02651852079 | AP161: -0.003502874831 | AQ161: -0.02651852079 | AS161: 0.9335367022 | AT161: 4.390202547 | AU161: 0.0005172909538 | AV161: 0.0005198497055 | AW161: 0.0002125936617 | AX161: 0.0001290210768
M162: 132 | N162: 2.31 | O162: 148.6887796 | P162: -1 | Q162: 75 | R162: -1 | S162: 75 | T162: -1 | U162: 0.02652738571 | V162: -0.02652738571 | W162: 0.02652738571 | X162: -0.02652738571 | AG162: 0 | AH162: 0.06649429506 | AI162: 0.02652738571 | AJ162: 0.02652738571 | AK162: 0.003490747678 | AL162: 0.02652738571 | AM162: 0.02652738571 | AN162: -0.02652738571 | AO162: -0.02652738571 | AP162: -0.003490747678 | AQ162: -0.02652738571 | AS162: 0.9330467241 | AT162: 4.375003414 | AU162: 0.0005184513064 | AV162: 0.0005210065871 | AW162: 0.0002125471619 | AX162: 0.0001290041439
M163: 133 | N163: 2.3275 | O163: 148.989591 | P163: -1 | Q163: 75 | R163: -1 | S163: 75 | T163: -1 | U163: 0.02653512324 | V163: -0.02653512324 | W163: 0.02653512324 | X163: -0.02653512324 | AG163: 0 | AH163: 0.06651369019 | AI163: 0.02653512324 | AJ163: 0.02653512324 | AK163: 0.003478614156 | AL163: 0.02653512324 | AM163: 0.02653512324 | AN163: -0.02653512324 | AO163: -0.02653512324 | AP163: -0.003478614156 | AQ163: -0.02653512324 | AS163: 0.9325570031 | AT163: 4.359796299 | AU163: 0.0005196014254 | AV163: 0.0005221532288 | AW163: 0.0002125006723 | AX163: 0.0001289872132
M164: 134 | N164: 2.345 | O164: 149.2897797 | P164: -1 | Q164: 74.99999809 | R164: -1 | S164: 74.99999809 | T164: -1 | U164: 0.02654174105 | V164: -0.02654174105 | W164: 0.02654174105 | X164: -0.02654174105 | AG164: 0 | AH164: 0.06653027858 | AI164: 0.02654174105 | AJ164: 0.02654174105 | AK164: 0.003466474262 | AL164: 0.02654174105 | AM164: 0.02654174105 | AN164: -0.02654174105 | AO164: -0.02654174105 | AP164: -0.003466474262 | AQ164: -0.02654174105 | AS164: 0.9320675392 | AT164: 4.344581199 | AU164: 0.0005207412338 | AV164: 0.000523289554 | AW164: 0.000212453469 | AX164: 0.0001289698453
M165: 135 | N165: 2.3625 | O165: 149.5893376 | P165: -1 | Q165: 75 | R165: -1 | S165: 75 | T165: -1 | U165: 0.02654724665 | V165: -0.02654724665 | W165: 0.02654724665 | X165: -0.02654724665 | AG165: 0 | AH165: 0.06654407907 | AI165: 0.02654724665 | AJ165: 0.02654724665 | AK165: 0.003454327993 | AL165: 0.02654724665 | AM165: 0.02654724665 | AN165: -0.02654724665 | AO165: -0.02654724665 | AP165: -0.003454327993 | AQ165: -0.02654724665 | AS165: 0.9315783321 | AT165: 4.329358108 | AU165: 0.0005218706554 | AV165: 0.0005244154865 | AW165: 0.0002124084475 | AX165: 0.000128953798
M166: 136 | N166: 2.38 | O166: 149.8882563 | P166: -1 | Q166: 75 | R166: -1 | S166: 75 | T166: -1 | U166: 0.02655164742 | V166: -0.02655164742 | W166: 0.02655164742 | X166: -0.02655164742 | AG166: 0 | AH166: 0.06655511017 | AI166: 0.02655164742 | AJ166: 0.02655164742 | AK166: 0.003442175345 | AL166: 0.02655164742 | AM166: 0.02655164742 | AN166: -0.02655164742 | AO166: -0.02655164742 | AP166: -0.003442175345 | AQ166: -0.02655164742 | AS166: 0.9310893819 | AT166: 4.314127023 | AU166: 0.0005229896142 | AV166: 0.0005255309504 | AW166: 0.0002123612645 | AX166: 0.0001289364345
M167: 137 | N167: 2.3975 | O167: 150.1865276 | P167: -1 | Q167: 75 | R167: -1 | S167: 75 | T167: -1 | U167: 0.02655495062 | V167: -0.02655495062 | W167: 0.02655495062 | X167: -0.02655495062 | AG167: 0 | AH167: 0.06656339006 | AI167: 0.02655495062 | AJ167: 0.02655495062 | AK167: 0.003430016316 | AL167: 0.02655495062 | AM167: 0.02655495062 | AN167: -0.02655495062 | AO167: -0.02655495062 | AP167: -0.003430016316 | AQ167: -0.02655495062 | AS167: 0.9306006882 | AT167: 4.29888794 | AU167: 0.0005240980344 | AV167: 0.0005266358702 | AW167: 0.0002123148156 | AX167: 0.0001289195127
M168: 138 | N168: 2.415 | O168: 150.4841435 | P168: -1 | Q168: 75 | R168: -1 | S168: 75 | T168: -1 | U168: 0.02655716337 | V168: -0.02655716337 | W168: 0.02655716337 | X168: -0.02655716337 | AG168: 0 | AH168: 0.06656893661 | AI168: 0.02655716337 | AJ168: 0.02655716337 | AK168: 0.003417850902 | AL168: 0.02655716337 | AM168: 0.02655716337 | AN168: -0.02655716337 | AO168: -0.02655716337 | AP168: -0.003417850902 | AQ168: -0.02655716337 | AS168: 0.9301122511 | AT168: 4.283640854 | AU168: 0.0005251958408 | AV168: 0.0005277301708 | AW168: 0.0002122683768 | AX168: 0.0001289025931
M169: 139 | N169: 2.4325 | O169: 150.7810955 | P169: -1 | Q169: 75 | R169: -1 | S169: 75 | T169: -1 | U169: 0.02655829269 | V169: -0.02655829269 | W169: 0.02655829269 | X169: -0.02655829269 | AG169: 0 | AH169: 0.06657176739 | AI169: 0.02655829269 | AJ169: 0.02655829269 | AK169: 0.003405679099 | AL169: 0.02655829269 | AM169: 0.02655829269 | AN169: -0.02655829269 | AO169: -0.02655829269 | AP169: -0.003405679099 | AQ169: -0.02655829269 | AS169: 0.9296240703 | AT169: 4.268385762 | AU169: 0.0005262829584 | AV169: 0.0005288137774 | AW169: 0.0002122219481 | AX169: 0.0001288856758
M170: 140 | N170: 2.45 | O170: 151.0773757 | P170: -1 | Q170: 75 | R170: -1 | S170: 75 | T170: -1 | U170: 0.02655834546 | V170: -0.02655834546 | W170: 0.02655834546 | X170: -0.02655834546 | AG170: 0 | AH170: 0.06657189966 | AI170: 0.02655834546 | AJ170: 0.02655834546 | AK170: 0.003393500904 | AL170: 0.02655834546 | AM170: 0.02655834546 | AN170: -0.02655834546 | AO170: -0.02655834546 | AP170: -0.003393500904 | AQ170: -0.02655834546 | AS170: 0.9291361458 | AT170: 4.253122658 | AU170: 0.0005273593128 | AV170: 0.0005298866156 | AW170: 0.0002121755297 | AX170: 0.0001288687606
M171: 141 | N171: 2.4675 | O171: 151.3729756 | P171: -1 | Q171: 75.00000191 | R171: -1 | S171: 75.00000191 | T171: -1 | U171: 0.02655732846 | V171: -0.02655732846 | W171: 0.02655732846 | X171: -0.02655732846 | AG171: 0 | AH171: 0.06656935041 | AI171: 0.02655732846 | AJ171: 0.02655732846 | AK171: 0.003381316314 | AL171: 0.02655732846 | AM171: 0.02655834546 | AN171: -0.02655732846 | AO171: -0.02655732846 | AP171: -0.003381316314 | AQ171: -0.02655732846 | AS171: 0.9286484773 | AT171: 4.237851539 | AU171: 0.0005284248296 | AV171: 0.0005309486113 | AW171: 0.0002121298819 | AX171: 0.0001288523097
M172: 142 | N172: 2.485 | O172: 151.6678872 | P172: -1 | Q172: 75 | R172: -1 | S172: 75 | T172: -1 | U172: 0.02655524833 | V172: -0.02655524833 | W172: 0.02655524833 | X172: -0.02655524833 | AG172: 0 | AH172: 0.06656413631 | AI172: 0.02655524833 | AJ172: 0.02655524833 | AK172: 0.003369125325 | AL172: 0.02655524833 | AM172: 0.02655834546 | AN172: -0.02655524833 | AO172: -0.02655524833 | AP172: -0.003369125325 | AQ172: -0.02655524833 | AS172: 0.9281610648 | AT172: 4.222572401 | AU172: 0.0005294794351 | AV172: 0.0005319996909 | AW172: 0.0002120819626 | AX172: 0.000128834475
M173: 143 | N173: 2.5025 | O173: 151.9621022 | P173: -1 | Q173: 75 | R173: -1 | S173: 75 | T173: -1 | U173: 0.02655211165 | V173: -0.02655211165 | W173: 0.02655211165 | X173: -0.02655211165 | AG173: 0 | AH173: 0.0665562738 | AI173: 0.02655211165 | AJ173: 0.02655211165 | AK173: 0.003356927935 | AL173: 0.02655211165 | AM173: 0.02655834546 | AN173: -0.02655211165 | AO173: -0.02655211165 | AP173: -0.003356927935 | AQ173: -0.02655211165 | AS173: 0.9276739082 | AT173: 4.207285239 | AU173: 0.0005305230558 | AV173: 0.000533039781 | AW173: 0.0002120363352 | AX173: 0.0001288180286
M174: 144 | N174: 2.52 | O174: 152.2556124 | P174: -1 | Q174: 75 | R174: -1 | S174: 75 | T174: -1 | U174: 0.02654792483 | V174: -0.02654792483 | W174: 0.02654792483 | X174: -0.02654792483 | AG174: 0 | AH174: 0.06654577901 | AI174: 0.02654792483 | AJ174: 0.02654792483 | AK174: 0.003344724139 | AL174: 0.02654792483 | AM174: 0.02655834546 | AN174: -0.02654792483 | AO174: -0.02654792483 | AP174: -0.003344724139 | AQ174: -0.02654792483 | AS174: 0.9271870072 | AT174: 4.191990049 | AU174: 0.0005315556185 | AV174: 0.0005340688088 | AW174: 0.0002119899573 | AX174: 0.0001288011223
M175: 145 | N175: 2.5375 | O175: 152.5484096 | P175: -1 | Q175: 75 | R175: -1 | S175: 75 | T175: -1 | U175: 0.02654269422 | V175: -0.02654269422 | W175: 0.02654269422 | X175: -0.02654269422 | AG175: 0 | AH175: 0.06653266781 | AI175: 0.02654269422 | AJ175: 0.02654269422 | AK175: 0.003332513934 | AL175: 0.02654269422 | AM175: 0.02655834546 | AN175: -0.02654269422 | AO175: -0.02654269422 | AP175: -0.003332513934 | AQ175: -0.02654269422 | AS175: 0.9267003618 | AT175: 4.176686827 | AU175: 0.0005325770507 | AV175: 0.0005350867016 | AW175: 0.0002119435895 | AX175: 0.0001287842183
M176: 146 | N176: 2.555 | O176: 152.8404856 | P176: -1 | Q176: 75 | R176: -1 | S176: 75 | T176: -1 | U176: 0.02653642604 | V176: -0.02653642604 | W176: 0.02653642604 | X176: -0.02653642604 | AG176: 0 | AH176: 0.06651695582 | AI176: 0.02653642604 | AJ176: 0.02653642604 | AK176: 0.003320297318 | AL176: 0.02653642604 | AM176: 0.02655834546 | AN176: -0.02653642604 | AO176: -0.02653642604 | AP176: -0.003320297318 | AQ176: -0.02653642604 | AS176: 0.9262139718 | AT176: 4.161375569 | AU176: 0.0005335872798 | AV176: 0.0005360933873 | AW176: 0.000211897232 | AX176: 0.0001287673164
M177: 147 | N177: 2.5725 | O177: 153.1318321 | P177: -1 | Q177: 75 | R177: -1 | S177: 75 | T177: -1 | U177: 0.02652912643 | V177: -0.02652912643 | W177: 0.02652912643 | X177: -0.02652912643 | AG177: 0 | AH177: 0.06649865842 | AI177: 0.02652912643 | AJ177: 0.02652912643 | AK177: 0.003308074286 | AL177: 0.02652912643 | AM177: 0.02655834546 | AN177: -0.02652912643 | AO177: -0.02652912643 | AP177: -0.003308074286 | AQ177: -0.02652912643 | AS177: 0.9257278371 | AT177: 4.14605627 | AU177: 0.0005345862339 | AV177: 0.000537088794 | AW177: 0.0002118508845 | AX177: 0.0001287504168
M178: 148 | N178: 2.59 | O178: 153.4224411 | P178: -1 | Q178: 75 | R178: -1 | S178: 75 | T178: -1 | U178: 0.02652080142 | V178: -0.02652080142 | W178: 0.02652080142 | X178: -0.02652080142 | AG178: 0 | AH178: 0.06647779072 | AI178: 0.02652080142 | AJ178: 0.02652080142 | AK178: 0.003295844835 | AL178: 0.02652080142 | AM178: 0.02655834546 | AN178: -0.02652080142 | AO178: -0.02652080142 | AP178: -0.003295844835 | AQ178: -0.02652080142 | AS178: 0.9252419575 | AT178: 4.130728926 | AU178: 0.0005355738414 | AV178: 0.0005380728502 | AW178: 0.0002118045472 | AX178: 0.0001287335195
M179: 149 | N179: 2.6075 | O179: 153.7123042 | P179: -1 | Q179: 75.00000095 | R179: -1 | S179: 75.00000095 | T179: -1 | U179: 0.02651145695 | V179: -0.02651145695 | W179: 0.02651145695 | X179: -0.02651145695 | AG179: 0 | AH179: 0.06645436759 | AI179: 0.02651145695 | AJ179: 0.02651145695 | AK179: 0.003283608962 | AL179: 0.02651145695 | AM179: 0.02655834546 | AN179: -0.02651145695 | AO179: -0.02651145695 | AP179: -0.003283608962 | AQ179: -0.02651145695 | AS179: 0.924756333 | AT179: 4.115393534 | AU179: 0.000536550031 | AV179: 0.0005390454849 | AW179: 0.0002117586212 | AX179: 0.0001287168682
M180: 150 | N180: 2.625 | O180: 154.0014133 | P180: -1 | Q180: 75 | R180: -1 | S180: 75 | T180: -1 | U180: 0.02650109885 | V180: -0.02650109885 | W180: 0.02650109885 | X180: -0.02650109885 | AG180: 0 | AH180: 0.06642840368 | AI180: 0.02650109885 | AJ180: 0.02650109885 | AK180: 0.003271366664 | AL180: 0.02650109885 | AM180: 0.02655834546 | AN180: -0.02650109885 | AO180: -0.02650109885 | AP180: -0.003271366664 | AQ180: -0.02650109885 | AS180: 0.9242709633 | AT180: 4.100050088 | AU180: 0.0005375147318 | AV180: 0.0005400066272 | AW180: 0.0002117115018 | AX180: 0.0001286994875
M181: 151 | N181: 2.6425 | O181: 154.2897601 | P181: -1 | Q181: 74.99999905 | R181: -1 | S181: 74.99999905 | T181: -1 | U181: 0.02648973287 | V181: -0.02648973287 | W181: 0.02648973287 | X181: -0.02648973287 | AG181: 0 | AH181: 0.06639991339 | AI181: 0.02648973287 | AJ181: 0.02648973287 | AK181: 0.003259117936 | AL181: 0.02648973287 | AM181: 0.02655834546 | AN181: -0.02648973287 | AO181: -0.02648973287 | AP181: -0.003259117936 | AQ181: -0.02648973287 | AS181: 0.9237858484 | AT181: 4.084698585 | AU181: 0.0005384678733 | AV181: 0.000540956207 | AW181: 0.0002116651897 | AX181: 0.0001286825936
M182: 152 | N182: 2.66 | O182: 154.5773364 | P182: -1 | Q182: 75 | R182: -1 | S182: 75 | T182: -1 | U182: 0.02647736467 | V182: -0.02647736467 | W182: 0.02647736467 | X182: -0.02647736467 | AG182: 0 | AH182: 0.06636891092 | AI182: 0.02647736467 | AJ182: 0.02647736467 | AK182: 0.003246862777 | AL182: 0.02647736467 | AM182: 0.02655834546 | AN182: -0.02647736467 | AO182: -0.02647736467 | AP182: -0.003246862777 | AQ182: -0.02647736467 | AS182: 0.9233009881 | AT182: 4.06933902 | AU182: 0.0005394093853 | AV182: 0.0005418941541 | AW182: 0.0002116197056 | AX182: 0.0001286661992
M183: 153 | N183: 2.6775 | O183: 154.8641341 | P183: -1 | Q183: 75 | R183: -1 | S183: 75 | T183: -1 | U183: 0.02646399982 | V183: -0.02646399982 | W183: 0.02646399982 | X183: -0.02646399982 | AG183: 0 | AH183: 0.06633541021 | AI183: 0.02646399982 | AJ183: 0.02646399982 | AK183: 0.003234601182 | AL183: 0.02646399982 | AM183: 0.02655834546 | AN183: -0.02646399982 | AO183: -0.02646399982 | AP183: -0.003234601182 | AQ183: -0.02646399982 | AS183: 0.9228163823 | AT183: 4.053971389 | AU183: 0.0005403391981 | AV183: 0.0005428203989 | AW183: 0.0002115730126 | AX183: 0.0001286490658
M184: 154 | N184: 2.695 | O184: 155.1501449 | P184: -1 | Q184: 75 | R184: -1 | S184: 75 | T184: -1 | U184: 0.02644964381 | V184: -0.02644964381 | W184: 0.02644964381 | X184: -0.02644964381 | AG184: 0 | AH184: 0.06629942503 | AI184: 0.02644964381 | AJ184: 0.02644964381 | AK184: 0.003222333147 | AL184: 0.02644964381 | AM184: 0.02655834546 | AN184: -0.02644964381 | AO184: -0.02644964381 | AP184: -0.003222333147 | AQ184: -0.02644964381 | AS184: 0.9223320309 | AT184: 4.038595689 | AU184: 0.0005412572421 | AV184: 0.0005437348722 | AW184: 0.0002115267361 | AX184: 0.0001286321817
M185: 155 | N185: 2.7125 | O185: 155.4353605 | P185: -1 | Q185: 75 | R185: -1 | S185: 75 | T185: -1 | U185: 0.02643430204 | V185: -0.02643430204 | W185: 0.02643430204 | X185: -0.02643430204 | AG185: 0 | AH185: 0.0662609689 | AI185: 0.02643430204 | AJ185: 0.02643430204 | AK185: 0.003210058671 | AL185: 0.02643430204 | AM185: 0.02655834546 | AN185: -0.02643430204 | AO185: -0.02643430204 | AP185: -0.003210058671 | AQ185: -0.02643430204 | AS185: 0.9218479336 | AT185: 4.023211914 | AU185: 0.0005421634484 | AV185: 0.000544637505 | AW185: 0.0002114804697 | AX185: 0.0001286152999
M186: 156 | N186: 2.73 | O186: 155.7197729 | P186: -1 | Q186: 75 | R186: -1 | S186: 75 | T186: -1 | U186: 0.02641797981 | V186: -0.02641797981 | W186: 0.02641797981 | X186: -0.02641797981 | AG186: 0 | AH186: 0.06622005516 | AI186: 0.02641797981 | AJ186: 0.02641797981 | AK186: 0.003197777748 | AL186: 0.02641797981 | AM186: 0.02655834546 | AN186: -0.02641797981 | AO186: -0.02641797981 | AP186: -0.003197777748 | AQ186: -0.02641797981 | AS186: 0.9213640905 | AT186: 4.00782006 | AU186: 0.0005430577483 | AV186: 0.000545528229 | AW186: 0.0002114342134 | AX186: 0.0001285984202
M187: 157 | N187: 2.7475 | O187: 156.0033738 | P187: -1 | Q187: 75 | R187: -1 | S187: 75 | T187: -1 | U187: 0.02640068238 | V187: -0.02640068238 | W187: 0.02640068238 | X187: -0.02640068238 | AG187: 0 | AH187: 0.06617669693 | AI187: 0.02640068238 | AJ187: 0.02640068238 | AK187: 0.003185490377 | AL187: 0.02640068238 | AM187: 0.02655834546 | AN187: -0.02640068238 | AO187: -0.02640068238 | AP187: -0.003185490377 | AQ187: -0.02640068238 | AS187: 0.9208805013 | AT187: 3.992420123 | AU187: 0.0005439400734 | AV187: 0.0005464069759 | AW187: 0.0002113879672 | AX187: 0.0001285815428
M188: 158 | N188: 2.765 | O188: 156.286155 | P188: -1 | Q188: 75 | R188: -1 | S188: 75 | T188: -1 | U188: 0.0263824149 | V188: -0.0263824149 | W188: 0.0263824149 | X188: -0.0263824149 | AG188: 0 | AH188: 0.06613090714 | AI188: 0.0263824149 | AJ188: 0.0263824149 | AK188: 0.003173196552 | AL188: 0.0263824149 | AM188: 0.02655834546 | AN188: -0.0263824149 | AO188: -0.0263824149 | AP188: -0.003173196552 | AQ188: -0.0263824149 | AS188: 0.9203971659 | AT188: 3.9770121 | AU188: 0.0005448103559 | AV188: 0.0005472736779 | AW188: 0.0002113417311 | AX188: 0.0001285646676
M189: 159 | N189: 2.7825 | O189: 156.5681082 | P189: -1 | Q189: 75 | R189: -1 | S189: 75 | T189: -1 | U189: 0.02636318244 | V189: -0.02636318244 | W189: 0.02636318244 | X189: -0.02636318244 | AG189: 0 | AH189: 0.06608269852 | AI189: 0.02636318244 | AJ189: 0.02636318244 | AK189: 0.003160896272 | AL189: 0.02636318244 | AM189: 0.02655834546 | AN189: -0.02636318244 | AO189: -0.02636318244 | AP189: -0.003160896272 | AQ189: -0.02636318244 | AS189: 0.9199140842 | AT189: 3.961595984 | AU189: 0.000545668528 | AV189: 0.0005481282676 | AW189: 0.0002112955052 | AX189: 0.0001285477945
M190: 160 | N190: 2.8 | O190: 156.8492253 | P190: -1 | Q190: 75 | R190: -1 | S190: 75 | T190: -1 | U190: 0.02634299002 | V190: -0.02634299002 | W190: 0.02634299002 | X190: -0.02634299002 | AG190: 0 | AH190: 0.06603208362 | AI190: 0.02634299002 | AJ190: 0.02634299002 | AK190: 0.003148589533 | AL190: 0.02634299002 | AM190: 0.02655834546 | AN190: -0.02634299002 | AO190: -0.02634299002 | AP190: -0.003148589533 | AQ190: -0.02634299002 | AS190: 0.9194312561 | AT190: 3.946171774 | AU190: 0.0005465145226 | AV190: 0.000548970678 | AW190: 0.0002112492894 | AX190: 0.0001285309238
M191: 161 | N191: 2.8175 | O191: 157.1294981 | P191: -1 | Q191: 75 | R191: -1 | S191: 75 | T191: -1 | U191: 0.02632184256 | V191: -0.02632184256 | W191: 0.02632184256 | X191: -0.02632184256 | AG191: 0 | AH191: 0.0659790748 | AI191: 0.02632184256 | AJ191: 0.02632184256 | AK191: 0.00313627633 | AL191: 0.02632184256 | AM191: 0.02655834546 | AN191: -0.02632184256 | AO191: -0.02632184256 | AP191: -0.00313627633 | AQ191: -0.02632184256 | AS191: 0.9189486814 | AT191: 3.930739463 | AU191: 0.0005473482728 | AV191: 0.0005498008424 | AW191: 0.0002112030836 | AX191: 0.0001285140552
M192: 162 | N192: 2.835 | O192: 157.4089183 | P192: -1 | Q192: 75.00000048 | R192: -1 | S192: 75.00000048 | T192: -1 | U192: 0.02629974492 | V192: -0.02629974492 | W192: 0.02629974492 | X192: -0.02629974492 | AG192: 0 | AH192: 0.06592368423 | AI192: 0.02629974492 | AJ192: 0.02629974492 | AK192: 0.003123956662 | AL192: 0.02629974492 | AM192: 0.02655834546 | AN192: -0.02629974492 | AO192: -0.02629974492 | AP192: -0.003123956662 | AQ192: -0.02629974492 | AS192: 0.9184663599 | AT192: 3.915299049 | AU192: 0.0005481697122 | AV192: 0.0005506186944 | AW192: 0.0002111571055 | AX192: 0.0001284973212
M193: 163 | N193: 2.8525 | O193: 157.6874778 | P193: -1 | Q193: 74.99999952 | R193: -1 | S193: 74.99999952 | T193: -1 | U193: 0.02627670189 | V193: -0.02627670189 | W193: 0.02627670189 | X193: -0.02627670189 | AG193: 0 | AH193: 0.06586592392 | AI193: 0.02627670189 | AJ193: 0.02627670189 | AK193: 0.003111630524 | AL193: 0.02627670189 | AM193: 0.02655834546 | AN193: -0.02627670189 | AO193: -0.02627670189 | AP193: -0.003111630524 | AQ193: -0.02627670189 | AS193: 0.9179842917 | AT193: 3.899850526 | AU193: 0.0005489787746 | AV193: 0.0005514241682 | AW193: 0.0002111102663 | AX193: 0.0001284800592
M194: 164 | N194: 2.87 | O194: 157.9651682 | P194: -1 | Q194: 75 | R194: -1 | S194: 75 | T194: -1 | U194: 0.02625271819 | V194: -0.02625271819 | W194: 0.02625271819 | X194: -0.02625271819 | AG194: 0 | AH194: 0.06580580569 | AI194: 0.02625271819 | AJ194: 0.02625271819 | AK194: 0.003099297913 | AL194: 0.02625271819 | AM194: 0.02655834546 | AN194: -0.02625271819 | AO194: -0.02625271819 | AP194: -0.003099297913 | AQ194: -0.02625271819 | AS194: 0.9175024764 | AT194: 3.884393891 | AU194: 0.0005497753942 | AV194: 0.0005522171982 | AW194: 0.0002110647458 | AX194: 0.0001284635959
M195: 165 | N195: 2.8875 | O195: 158.2419815 | P195: -1 | Q195: 75 | R195: -1 | S195: 75 | T195: -1 | U195: 0.02622779845 | V195: -0.02622779845 | W195: 0.02622779845 | X195: -0.02622779845 | AG195: 0 | AH195: 0.06574334119 | AI195: 0.02622779845 | AJ195: 0.02622779845 | AK195: 0.003086958826 | AL195: 0.02622779845 | AM195: 0.02655834546 | AN195: -0.02622779845 | AO195: -0.02622779845 | AP195: -0.003086958826 | AQ195: -0.02622779845 | AS195: 0.917020914 | AT195: 3.868929138 | AU195: 0.0005505595057 | AV195: 0.0005529977191 | AW195: 0.0002110183618 | AX195: 0.000128446603
M196: 166 | N196: 2.905 | O196: 158.5179095 | P196: -1 | Q196: 75 | R196: -1 | S196: 75 | T196: -1 | U196: 0.02620194728 | V196: -0.02620194728 | W196: 0.02620194728 | X196: -0.02620194728 | AG196: 0 | AH196: 0.0656785419 | AI196: 0.02620194728 | AJ196: 0.02620194728 | AK196: 0.003074613259 | AL196: 0.02620194728 | AM196: 0.02655834546 | AN196: -0.02620194728 | AO196: -0.02620194728 | AP196: -0.003074613259 | AQ196: -0.02620194728 | AS196: 0.9165396044 | AT196: 3.853456265 | AU196: 0.0005513310441 | AV196: 0.000553765666 | AW196: 0.0002109722065 | AX196: 0.0001284297455
M197: 167 | N197: 2.9225 | O197: 158.7929438 | P197: -1 | Q197: 75 | R197: -1 | S197: 75 | T197: -1 | U197: 0.02617516918 | V197: -0.02617516918 | W197: 0.02617516918 | X197: -0.02617516918 | AG197: 0 | AH197: 0.06561141915 | AI197: 0.02617516918 | AJ197: 0.02617516918 | AK197: 0.003062261209 | AL197: 0.02617516918 | AM197: 0.02655834546 | AN197: -0.02617516918 | AO197: -0.02617516918 | AP197: -0.003062261209 | AQ197: -0.02617516918 | AS197: 0.9160585474 | AT197: 3.837975266 | AU197: 0.0005520899446 | AV197: 0.0005545209746 | AW197: 0.0002109260614 | AX197: 0.0001284128902
M198: 168 | N198: 2.94 | O198: 159.0670763 | P198: -1 | Q198: 75 | R198: -1 | S198: 75 | T198: -1 | U198: 0.0261474686 | V198: -0.0261474686 | W198: 0.0261474686 | X198: -0.0261474686 | AG198: 0 | AH198: 0.0655419841 | AI198: 0.0261474686 | AJ198: 0.0261474686 | AK198: 0.003049902673 | AL198: 0.0261474686 | AM198: 0.02655834546 | AN198: -0.0261474686 | AO198: -0.0261474686 | AP198: -0.003049902673 | AQ198: -0.0261474686 | AS198: 0.9155777429 | AT198: 3.822486137 | AU198: 0.000552836143 | AV198: 0.0005552635806 | AW198: 0.0002108799264 | AX198: 0.0001283960371
M199: 169 | N199: 2.9575 | O199: 159.3402988 | P199: -1 | Q199: 75 | R199: -1 | S199: 75 | T199: -1 | U199: 0.02611884993 | V199: -0.02611884993 | W199: 0.02611884993 | X199: -0.02611884993 | AG199: 0 | AH199: 0.06547024774 | AI199: 0.02611884993 | AJ199: 0.02611884993 | AK199: 0.003037537646 | AL199: 0.02611884993 | AM199: 0.02655834546 | AN199: -0.02611884993 | AO199: -0.02611884993 | AP199: -0.003037537646 | AQ199: -0.02611884993 | AS199: 0.9150971907 | AT199: 3.806988875 | AU199: 0.0005535695754 | AV199: 0.0005559934204 | AW199: 0.0002108338014 | AX199: 0.0001283791862
M200: 170 | N200: 2.975 | O200: 159.612603 | P200: -1 | Q200: 75 | R200: -1 | S200: 75 | T200: -1 | U200: 0.02608931751 | V200: -0.02608931751 | W200: 0.02608931751 | X200: -0.02608931751 | AG200: 0 | AH200: 0.06539622094 | AI200: 0.02608931751 | AJ200: 0.02608931751 | AK200: 0.003025166127 | AL200: 0.02608931751 | AM200: 0.02655834546 | AN200: -0.02608931751 | AO200: -0.02608931751 | AP200: -0.003025166127 | AQ200: -0.02608931751 | AS200: 0.9146168908 | AT200: 3.791483474 | AU200: 0.0005542901781 | AV200: 0.0005567104304 | AW200: 0.0002107876866 | AX200: 0.0001283623376
M201: 171 | N201: 2.9925 | O201: 159.8839809 | P201: 160 | Q201: 75 | R201: 75 | S201: 75 | T201: 75 | U201: 0.0260588756 | V201: -0.0260588756 | W201: 0.0260588756 | X201: -0.0260588756 | AG201: 0 | AH201: 0.06531991438 | AI201: 0.0260588756 | AJ201: 0.0260588756 | AK201: 0.00301278811 | AL201: 0.0260588756 | AM201: 0.02655834546 | AN201: -0.0260588756 | AO201: -0.0260588756 | AP201: -0.00301278811 | AQ201: -0.0260588756 | AS201: 0.9141368429 | AT201: 3.775969931 | AU201: 0.0005549978879 | AV201: 0.0005574145478 | AW201: 0.0002107415818 | AX201: 0.0001283454911
M202: 172 | N202: 3.01 | O202: 160.1544213 | P202: -1 | Q202: 75 | R202: -1 | S202: 75 | T202: -1 | U202: 0.0260275284 | V202: -0.0260275284 | W202: 0.0260275284 | X202: -0.0260275284 | AG202: 0 | AH202: 0.06524133861 | AI202: 0.0260275284 | AJ202: 0.0260275284 | AK202: 0.003000403593 | AL202: 0.0260275284 | AM202: 0.02655834546 | AN202: -0.0260275284 | AO202: -0.0260275284 | AP202: -0.003000403593 | AQ202: -0.0260275284 | AS202: 0.913657047 | AT202: 3.760448241 | AU202: 0.0005556913504 | AV202: 0.0005581044188 | AW202: 0.0002106954872 | AX202: 0.0001283286469
M203: 173 | N203: 3.0275 | O203: 160.4239334 | P203: -1 | Q203: 75 | R203: -1 | S203: 75 | T203: -1 | U203: 0.02599528007 | V203: -0.02599528007 | W203: 0.02599528007 | X203: -0.02599528007 | AG203: 0 | AH203: 0.06516050403 | AI203: 0.02599528007 | AJ203: 0.02599528007 | AK203: 0.002988012573 | AL203: 0.02599528007 | AM203: 0.02655834546 | AN203: -0.02599528007 | AO203: -0.02599528007 | AP203: -0.002988012573 | AQ203: -0.02599528007 | AS203: 0.913177503 | AT203: 3.7449184 | AU203: 0.0005563798453 | AV203: 0.0005587893186 | AW203: 0.0002106494026 | AX203: 0.0001283118049
M204: 174 | N204: 3.045 | O204: 160.6925084 | P204: -1 | Q204: 75 | R204: -1 | S204: 75 | T204: -1 | U204: 0.0259621347 | V204: -0.0259621347 | W204: 0.0259621347 | X204: -0.0259621347 | AG204: 0 | AH204: 0.0650774209 | AI204: 0.0259621347 | AJ204: 0.0259621347 | AK204: 0.002975615046 | AL204: 0.0259621347 | AM204: 0.02655834546 | AN204: -0.0259621347 | AO204: -0.0259621347 | AP204: -0.002975615046 | AQ204: -0.0259621347 | AS204: 0.9126982106 | AT204: 3.729380404 | AU204: 0.0005570551072 | AV204: 0.0005594609861 | AW204: 0.000210603328 | AX204: 0.000128294965
M205: 175 | N205: 3.0625 | O205: 160.9601324 | P205: -1 | Q205: 75 | R205: -1 | S205: 75 | T205: -1 | U205: 0.02592809632 | V205: -0.02592809632 | W205: 0.02592809632 | X205: -0.02592809632 | AG205: 0 | AH205: 0.06499209935 | AI205: 0.02592809632 | AJ205: 0.02592809632 | AK205: 0.002963211008 | AL205: 0.02592809632 | AM205: 0.02655834546 | AN205: -0.02592809632 | AO205: -0.02592809632 | AP205: -0.002963211008 | AQ205: -0.02592809632 | AS205: 0.9122191698 | AT205: 3.713834248 | AU205: 0.0005577146292 | AV205: 0.0005601169159 | AW205: 0.0002105572636 | AX205: 0.0001282781274
M206: 176 | N206: 3.08 | O206: 161.2268213 | P206: -1 | Q206: 75 | R206: -1 | S206: 75 | T206: -1 | U206: 0.02589316892 | V206: -0.02589316892 | W206: 0.02589316892 | X206: -0.02589316892 | AG206: 0 | AH206: 0.06490454934 | AI206: 0.02589316892 | AJ206: 0.02589316892 | AK206: 0.002950800457 | AL206: 0.02589316892 | AM206: 0.02655834546 | AN206: -0.02589316892 | AO206: -0.02589316892 | AP206: -0.002950800457 | AQ206: -0.02589316892 | AS206: 0.9117403804 | AT206: 3.698279929 | AU206: 0.0005583723876 | AV206: 0.0005607710773 | AW206: 0.0002105112092 | AX206: 0.000128261292
M207: 177 | N207: 3.0975 | O207: 161.492591 | P207: -1 | Q207: 75 | R207: -1 | S207: 75 | T207: -1 | U207: 0.02585735643 | V207: -0.02585735643 | W207: 0.02585735643 | X207: -0.02585735643 | AG207: 0 | AH207: 0.06481478072 | AI207: 0.02585735643 | AJ207: 0.02585735643 | AK207: 0.002938383388 | AL207: 0.02585735643 | AM207: 0.02655834546 | AN207: -0.02585735643 | AO207: -0.02585735643 | AP207: -0.002938383388 | AQ207: -0.02585735643 | AS207: 0.9112618424 | AT207: 3.682717441 | AU207: 0.000559028564 | AV207: 0.0005614236516 | AW207: 0.0002104651649 | AX207: 0.0001282444588
... 223 more rows

Sheet Notes
B2: Simple xVA calculator - basic assumptions
B4: This spreadsheet is intended to give an approximate calculation of the xVA terms for a single interest rate swap.
B5: This is a simple example which should give a reasonable ballpark figure but makes a number of necessary approximations.
B6: Please see the accompanying document and email me for any queries (jon@oftraining.com)
B8: Not to be distributed without prior permission
B10: © Jon Gregory 2015
XFD12: =XFD2-XFD11 -> 0
